{"text_format":"1","workbook":"xlsx","n_sheets":3,"sheets":["Cronograma","FACTORES","TABLA"],"not_rendered":{"charts":0,"images":1,"macros":1,"external_links":0,"defined_names":3,"comments":1,"pivot_tables":0},"unopened":[],"bounds":{"document_bytes":16777216,"sheet_cells":100000,"rows_first":2000,"rows_last":500,"rows_between":2000,"halvings":0,"cell_chars":16384,"cell_head_chars":4096},"cells_cut":0,"cells_raw":0,"read":"whole","date_system":"1900"}

{"sheet":"Cronograma","index":0,"n_rows":804,"n_cols":102,"rows_kept":804,"cut":false,"hidden":false,"merged":[[7,3,7,5],[7,14,7,15],[40,7,40,9],[40,11,40,13],[36,7,36,9],[36,11,36,13],[28,7,28,9],[29,7,29,9],[37,7,37,9],[37,11,37,13],[28,11,28,13],[29,11,29,13],[41,7,41,9],[42,7,42,9],[42,11,42,13],[38,11,38,13],[39,7,39,9],[39,11,39,13],[38,7,38,9],[34,7,34,9],[34,11,34,13],[32,7,32,9],[47,7,47,9],[47,11,47,13],[48,7,48,9],[48,11,48,13],[32,11,32,13],[33,7,33,9],[35,7,35,9],[35,11,35,13],[38,17,38,18],[39,17,39,18],[36,17,36,18],[28,17,28,18],[37,17,37,18],[30,7,30,9],[30,11,30,13],[31,7,31,9],[31,11,31,13],[33,11,33,13],[43,7,43,9],[43,11,43,13],[40,17,40,18],[41,17,41,18],[42,17,42,18],[43,17,43,18],[41,11,41,13],[46,7,46,9],[46,11,46,13],[45,7,45,9],[45,11,45,13],[44,7,44,9],[44,11,44,13],[57,7,57,9],[57,11,57,13],[58,7,58,9],[58,11,58,13],[55,7,55,9],[55,11,55,13],[56,7,56,9],[56,11,56,13],[53,7,53,9],[53,11,53,13],[54,7,54,9],[54,11,54,13],[51,7,51,9],[51,11,51,13],[52,7,52,9],[52,11,52,13],[49,7,49,9],[49,11,49,13],[50,7,50,9],[50,11,50,13],[67,7,67,9],[67,11,67,13],[68,7,68,9],[68,11,68,13],[65,7,65,9],[65,11,65,13],[66,7,66,9],[66,11,66,13],[63,7,63,9],[63,11,63,13],[64,7,64,9],[64,11,64,13],[61,7,61,9],[61,11,61,13],[62,7,62,9],[62,11,62,13],[59,7,59,9],[59,11,59,13],[60,7,60,9],[60,11,60,13],[77,7,77,9],[77,11,77,13],[78,7,78,9],[78,11,78,13],[75,7,75,9],[75,11,75,13],[76,7,76,9],[76,11,76,13],[73,7,73,9],[73,11,73,13],[74,7,74,9],[74,11,74,13],[71,7,71,9],[71,11,71,13],[72,7,72,9],[72,11,72,13],[70,7,70,9],[70,11,70,13],[87,7,87,9],[87,11,87,13],[88,7,88,9],[88,11,88,13],[85,7,85,9],[85,11,85,13],[86,7,86,9],[86,11,86,13],[83,7,83,9],[83,11,83,13],[84,7,84,9],[84,11,84,13],[81,7,81,9],[81,11,81,13],[82,7,82,9],[82,11,82,13],[79,7,79,9],[79,11,79,13],[80,7,80,9],[80,11,80,13],[97,7,97,9],[97,11,97,13],[98,7,98,9],[98,11,98,13],[95,7,95,9],[95,11,95,13],[96,7,96,9],[96,11,96,13],[93,7,93,9],[93,11,93,13],[94,7,94,9],[94,11,94,13],[91,7,91,9],[91,11,91,13],[92,7,92,9],[92,11,92,13],[89,7,89,9],[89,11,89,13],[90,7,90,9],[90,11,90,13],[107,7,107,9],[107,11,107,13],[108,7,108,9],[108,11,108,13],[105,7,105,9],[105,11,105,13],[106,7,106,9],[106,11,106,13],[103,7,103,9],[103,11,103,13],[104,7,104,9],[104,11,104,13],[101,7,101,9],[101,11,101,13],[102,7,102,9],[102,11,102,13],[99,7,99,9],[99,11,99,13],[100,7,100,9],[100,11,100,13],[117,7,117,9],[117,11,117,13],[118,7,118,9],[118,11,118,13],[115,7,115,9],[115,11,115,13],[116,7,116,9],[116,11,116,13],[113,7,113,9],[113,11,113,13],[114,7,114,9],[114,11,114,13],[111,7,111,9],[111,11,111,13],[112,7,112,9],[112,11,112,13],[109,7,109,9],[109,11,109,13],[110,7,110,9],[110,11,110,13],[127,7,127,9],[127,11,127,13],[128,7,128,9],[128,11,128,13],[125,7,125,9],[125,11,125,13],[126,7,126,9],[126,11,126,13],[123,7,123,9],[123,11,123,13],[124,7,124,9],[124,11,124,13],[121,7,121,9],[121,11,121,13],[122,7,122,9],[122,11,122,13],[119,7,119,9],[119,11,119,13],[120,7,120,9],[120,11,120,13],[137,7,137,9],[137,11,137,13],[138,7,138,9],[138,11,138,13],[135,7,135,9],[135,11,135,13],[136,7,136,9],[136,11,136,13],[133,7,133,9],[133,11,133,13],[134,7,134,9],[134,11,134,13],[131,7,131,9],[131,11,131,13],[132,7,132,9],[132,11,132,13],[129,7,129,9],[129,11,129,13],[130,7,130,9],[130,11,130,13],[147,7,147,9],[147,11,147,13],[148,7,148,9],[148,11,148,13],[145,7,145,9],[145,11,145,13],[146,7,146,9],[146,11,146,13],[143,7,143,9],[143,11,143,13],[144,7,144,9],[144,11,144,13],[141,7,141,9],[141,11,141,13],[142,7,142,9],[142,11,142,13],[139,7,139,9],[139,11,139,13],[140,7,140,9],[140,11,140,13],[157,7,157,9],[157,11,157,13],[158,7,158,9],[158,11,158,13],[155,7,155,9],[155,11,155,13],[156,7,156,9],[156,11,156,13],[153,7,153,9],[153,11,153,13],[154,7,154,9],[154,11,154,13],[151,7,151,9],[151,11,151,13],[152,7,152,9],[152,11,152,13],[149,7,149,9],[149,11,149,13],[150,7,150,9],[150,11,150,13],[167,7,167,9],[167,11,167,13],[168,7,168,9],[168,11,168,13],[165,7,165,9],[165,11,165,13],[166,7,166,9],[166,11,166,13],[163,7,163,9],[163,11,163,13],[164,7,164,9],[164,11,164,13],[161,7,161,9],[161,11,161,13],[162,7,162,9],[162,11,162,13],[159,7,159,9],[159,11,159,13],[160,7,160,9],[160,11,160,13],[177,7,177,9],[177,11,177,13],[178,7,178,9],[178,11,178,13],[175,7,175,9],[175,11,175,13],[176,7,176,9],[176,11,176,13],[173,7,173,9],[173,11,173,13],[174,7,174,9],[174,11,174,13],[171,7,171,9],[171,11,171,13],[172,7,172,9],[172,11,172,13],[169,7,169,9],[169,11,169,13],[170,7,170,9],[170,11,170,13],[187,7,187,9],[187,11,187,13],[188,7,188,9],[188,11,188,13],[185,7,185,9],[185,11,185,13],[186,7,186,9],[186,11,186,13],[183,7,183,9],[183,11,183,13],[184,7,184,9],[184,11,184,13],[181,7,181,9],[181,11,181,13],[182,7,182,9],[182,11,182,13],[179,7,179,9],[179,11,179,13],[180,7,180,9],[180,11,180,13],[197,7,197,9],[197,11,197,13],[198,7,198,9],[198,11,198,13],[195,7,195,9],[195,11,195,13],[196,7,196,9],[196,11,196,13],[193,7,193,9],[193,11,193,13],[194,7,194,9],[194,11,194,13],[191,7,191,9],[191,11,191,13],[192,7,192,9],[192,11,192,13],[189,7,189,9],[189,11,189,13],[190,7,190,9],[190,11,190,13],[207,7,207,9],[207,11,207,13],[208,7,208,9],[208,11,208,13],[205,7,205,9],[205,11,205,13],[206,7,206,9],[206,11,206,13],[203,7,203,9],[203,11,203,13],[204,7,204,9],[204,11,204,13],[201,7,201,9],[201,11,201,13],[202,7,202,9],[202,11,202,13],[199,7,199,9],[199,11,199,13],[200,7,200,9],[200,11,200,13],[217,7,217,9],[217,11,217,13],[218,7,218,9],[218,11,218,13],[215,7,215,9],[215,11,215,13],[216,7,216,9],[216,11,216,13],[213,7,213,9],[213,11,213,13],[214,7,214,9],[214,11,214,13],[211,7,211,9],[211,11,211,13],[212,7,212,9],[212,11,212,13],[209,7,209,9],[209,11,209,13],[210,7,210,9],[210,11,210,13],[227,7,227,9],[227,11,227,13],[228,7,228,9],[228,11,228,13],[225,7,225,9],[225,11,225,13],[226,7,226,9],[226,11,226,13],[223,7,223,9],[223,11,223,13],[224,7,224,9],[224,11,224,13],[221,7,221,9],[221,11,221,13],[222,7,222,9],[222,11,222,13],[219,7,219,9],[219,11,219,13],[220,7,220,9],[220,11,220,13],[237,7,237,9],[237,11,237,13],[238,7,238,9],[238,11,238,13],[235,7,235,9],[235,11,235,13],[236,7,236,9],[236,11,236,13],[233,7,233,9],[233,11,233,13],[234,7,234,9],[234,11,234,13],[231,7,231,9],[231,11,231,13],[232,7,232,9],[232,11,232,13],[229,7,229,9],[229,11,229,13],[230,7,230,9],[230,11,230,13],[247,7,247,9],[247,11,247,13],[248,7,248,9],[248,11,248,13],[245,7,245,9],[245,11,245,13],[246,7,246,9],[246,11,246,13],[243,7,243,9],[243,11,243,13],[244,7,244,9],[244,11,244,13],[241,7,241,9],[241,11,241,13],[242,7,242,9],[242,11,242,13],[239,7,239,9],[239,11,239,13],[240,7,240,9],[240,11,240,13],[258,11,258,13],[255,7,255,9],[255,11,255,13],[256,7,256,9],[256,11,256,13],[253,7,253,9],[253,11,253,13],[254,7,254,9],[254,11,254,13],[251,7,251,9],[251,11,251,13],[252,7,252,9],[252,11,252,13],[249,7,249,9],[249,11,249,13],[250,7,250,9],[250,11,250,13],[269,7,269,9],[269,11,269,13],[29,17,29,18],[30,17,30,18],[31,17,31,18],[32,17,32,18],[33,17,33,18],[34,17,34,18],[35,17,35,18],[267,7,267,9],[267,11,267,13],[268,7,268,9],[268,11,268,13],[265,7,265,9],[265,11,265,13],[266,7,266,9],[266,11,266,13],[263,7,263,9],[263,11,263,13],[264,7,264,9],[264,11,264,13],[261,7,261,9],[261,11,261,13],[262,7,262,9],[262,11,262,13],[259,7,259,9],[259,11,259,13],[260,7,260,9],[260,11,260,13],[257,7,257,9],[257,11,257,13],[258,7,258,9],[52,17,52,18],[53,17,53,18],[66,17,66,18],[67,17,67,18],[56,17,56,18],[57,17,57,18],[58,17,58,18],[59,17,59,18],[60,17,60,18],[61,17,61,18],[54,17,54,18],[55,17,55,18],[44,17,44,18],[45,17,45,18],[46,17,46,18],[47,17,47,18],[48,17,48,18],[49,17,49,18],[50,17,50,18],[51,17,51,18],[80,17,80,18],[81,17,81,18],[82,17,82,18],[83,17,83,18],[84,17,84,18],[85,17,85,18],[86,17,86,18],[87,17,87,18],[62,17,62,18],[63,17,63,18],[64,17,64,18],[65,17,65,18],[72,17,72,18],[73,17,73,18],[78,17,78,18],[79,17,79,18],[68,17,68,18],[70,17,70,18],[71,17,71,18],[76,17,76,18],[77,17,77,18],[74,17,74,18],[75,17,75,18],[98,17,98,18],[99,17,99,18],[100,17,100,18],[101,17,101,18],[108,17,108,18],[109,17,109,18],[114,17,114,18],[115,17,115,18],[104,17,104,18],[105,17,105,18],[106,17,106,18],[107,17,107,18],[112,17,112,18],[113,17,113,18],[110,17,110,18],[111,17,111,18],[88,17,88,18],[89,17,89,18],[102,17,102,18],[103,17,103,18],[92,17,92,18],[93,17,93,18],[94,17,94,18],[95,17,95,18],[96,17,96,18],[97,17,97,18],[90,17,90,18],[91,17,91,18],[124,17,124,18],[125,17,125,18],[138,17,138,18],[139,17,139,18],[128,17,128,18],[129,17,129,18],[130,17,130,18],[131,17,131,18],[132,17,132,18],[133,17,133,18],[126,17,126,18],[127,17,127,18],[116,17,116,18],[117,17,117,18],[118,17,118,18],[119,17,119,18],[120,17,120,18],[121,17,121,18],[122,17,122,18],[123,17,123,18],[152,17,152,18],[153,17,153,18],[154,17,154,18],[155,17,155,18],[156,17,156,18],[157,17,157,18],[158,17,158,18],[159,17,159,18],[134,17,134,18],[135,17,135,18],[136,17,136,18],[137,17,137,18],[144,17,144,18],[145,17,145,18],[150,17,150,18],[151,17,151,18],[140,17,140,18],[141,17,141,18],[142,17,142,18],[143,17,143,18],[148,17,148,18],[149,17,149,18],[146,17,146,18],[147,17,147,18],[170,17,170,18],[171,17,171,18],[172,17,172,18],[173,17,173,18],[180,17,180,18],[181,17,181,18],[186,17,186,18],[187,17,187,18],[176,17,176,18],[177,17,177,18],[178,17,178,18],[179,17,179,18],[184,17,184,18],[185,17,185,18],[182,17,182,18],[183,17,183,18],[160,17,160,18],[161,17,161,18],[174,17,174,18],[175,17,175,18],[164,17,164,18],[165,17,165,18],[166,17,166,18],[167,17,167,18],[168,17,168,18],[169,17,169,18],[162,17,162,18],[163,17,163,18],[196,17,196,18],[197,17,197,18],[210,17,210,18],[211,17,211,18],[200,17,200,18],[201,17,201,18],[202,17,202,18],[203,17,203,18],[204,17,204,18],[205,17,205,18],[198,17,198,18],[199,17,199,18],[188,17,188,18],[189,17,189,18],[190,17,190,18],[191,17,191,18],[192,17,192,18],[193,17,193,18],[194,17,194,18],[195,17,195,18],[224,17,224,18],[225,17,225,18],[226,17,226,18],[227,17,227,18],[228,17,228,18],[229,17,229,18],[230,17,230,18],[231,17,231,18],[206,17,206,18],[207,17,207,18],[208,17,208,18],[209,17,209,18],[216,17,216,18],[217,17,217,18],[222,17,222,18],[223,17,223,18],[212,17,212,18],[213,17,213,18],[214,17,214,18],[215,17,215,18],[220,17,220,18],[221,17,221,18],[218,17,218,18],[219,17,219,18],[259,17,259,18],[248,17,248,18],[249,17,249,18],[250,17,250,18],[251,17,251,18],[256,17,256,18],[257,17,257,18],[254,17,254,18],[255,17,255,18],[232,17,232,18],[233,17,233,18],[246,17,246,18],[247,17,247,18],[236,17,236,18],[237,17,237,18],[238,17,238,18],[239,17,239,18],[240,17,240,18],[241,17,241,18],[234,17,234,18],[235,17,235,18],[277,11,277,13],[278,11,278,13],[279,11,279,13],[280,11,280,13],[281,11,281,13],[282,11,282,13],[271,11,271,13],[272,11,272,13],[273,11,273,13],[274,11,274,13],[275,11,275,13],[276,11,276,13],[69,7,69,9],[69,11,69,13],[69,17,69,18],[260,17,260,18],[261,17,261,18],[262,17,262,18],[242,17,242,18],[243,17,243,18],[244,17,244,18],[245,17,245,18],[263,17,263,18],[268,17,268,18],[269,17,269,18],[264,17,264,18],[265,17,265,18],[266,17,266,18],[267,17,267,18],[252,17,252,18],[253,17,253,18],[258,17,258,18],[295,11,295,13],[296,11,296,13],[297,11,297,13],[298,11,298,13],[299,11,299,13],[300,11,300,13],[289,11,289,13],[290,11,290,13],[291,11,291,13],[292,11,292,13],[293,11,293,13],[294,11,294,13],[283,11,283,13],[284,11,284,13],[285,11,285,13],[286,11,286,13],[287,11,287,13],[288,11,288,13],[313,11,313,13],[314,11,314,13],[315,11,315,13],[316,11,316,13],[317,11,317,13],[318,11,318,13],[307,11,307,13],[308,11,308,13],[309,11,309,13],[310,11,310,13],[311,11,311,13],[312,11,312,13],[301,11,301,13],[302,11,302,13],[303,11,303,13],[304,11,304,13],[305,11,305,13],[306,11,306,13],[331,11,331,13],[332,11,332,13],[333,11,333,13],[334,11,334,13],[335,11,335,13],[336,11,336,13],[325,11,325,13],[326,11,326,13],[327,11,327,13],[328,11,328,13],[329,11,329,13],[330,11,330,13],[319,11,319,13],[320,11,320,13],[321,11,321,13],[322,11,322,13],[323,11,323,13],[324,11,324,13],[349,11,349,13],[350,11,350,13],[351,11,351,13],[352,11,352,13],[353,11,353,13],[354,11,354,13],[343,11,343,13],[344,11,344,13],[345,11,345,13],[346,11,346,13],[347,11,347,13],[348,11,348,13],[337,11,337,13],[338,11,338,13],[339,11,339,13],[340,11,340,13],[341,11,341,13],[342,11,342,13],[367,11,367,13],[368,11,368,13],[369,11,369,13],[370,11,370,13],[371,11,371,13],[372,11,372,13],[361,11,361,13],[362,11,362,13],[363,11,363,13],[364,11,364,13],[365,11,365,13],[366,11,366,13],[355,11,355,13],[356,11,356,13],[357,11,357,13],[358,11,358,13],[359,11,359,13],[360,11,360,13],[385,11,385,13],[386,11,386,13],[387,11,387,13],[388,11,388,13],[389,11,389,13],[390,11,390,13],[379,11,379,13],[380,11,380,13],[381,11,381,13],[382,11,382,13],[383,11,383,13],[384,11,384,13],[373,11,373,13],[374,11,374,13],[375,11,375,13],[376,11,376,13],[377,11,377,13],[378,11,378,13],[403,11,403,13],[404,11,404,13],[405,11,405,13],[406,11,406,13],[407,11,407,13],[408,11,408,13],[397,11,397,13],[398,11,398,13],[399,11,399,13],[400,11,400,13],[401,11,401,13],[402,11,402,13],[391,11,391,13],[392,11,392,13],[393,11,393,13],[394,11,394,13],[395,11,395,13],[396,11,396,13],[421,11,421,13],[422,11,422,13],[423,11,423,13],[424,11,424,13],[425,11,425,13],[426,11,426,13],[415,11,415,13],[416,11,416,13],[417,11,417,13],[418,11,418,13],[419,11,419,13],[420,11,420,13],[409,11,409,13],[410,11,410,13],[411,11,411,13],[412,11,412,13],[413,11,413,13],[414,11,414,13],[439,11,439,13],[440,11,440,13],[441,11,441,13],[442,11,442,13],[443,11,443,13],[444,11,444,13],[433,11,433,13],[434,11,434,13],[435,11,435,13],[436,11,436,13],[437,11,437,13],[438,11,438,13],[427,11,427,13],[428,11,428,13],[429,11,429,13],[430,11,430,13],[431,11,431,13],[432,11,432,13],[457,11,457,13],[458,11,458,13],[459,11,459,13],[460,11,460,13],[461,11,461,13],[462,11,462,13],[451,11,451,13],[452,11,452,13],[453,11,453,13],[454,11,454,13],[455,11,455,13],[456,11,456,13],[445,11,445,13],[446,11,446,13],[447,11,447,13],[448,11,448,13],[449,11,449,13],[450,11,450,13],[475,11,475,13],[476,11,476,13],[477,11,477,13],[478,11,478,13],[479,11,479,13],[480,11,480,13],[469,11,469,13],[470,11,470,13],[471,11,471,13],[472,11,472,13],[473,11,473,13],[474,11,474,13],[463,11,463,13],[464,11,464,13],[465,11,465,13],[466,11,466,13],[467,11,467,13],[468,11,468,13],[493,11,493,13],[494,11,494,13],[495,11,495,13],[496,11,496,13],[497,11,497,13],[498,11,498,13],[487,11,487,13],[488,11,488,13],[489,11,489,13],[490,11,490,13],[491,11,491,13],[492,11,492,13],[481,11,481,13],[482,11,482,13],[483,11,483,13],[484,11,484,13],[485,11,485,13],[486,11,486,13],[511,11,511,13],[512,11,512,13],[513,11,513,13],[514,11,514,13],[515,11,515,13],[516,11,516,13],[505,11,505,13],[506,11,506,13],[507,11,507,13],[508,11,508,13],[509,11,509,13],[510,11,510,13],[499,11,499,13],[500,11,500,13],[501,11,501,13],[502,11,502,13],[503,11,503,13],[504,11,504,13],[529,11,529,13],[530,11,530,13],[531,11,531,13],[532,11,532,13],[533,11,533,13],[534,11,534,13],[523,11,523,13],[524,11,524,13],[525,11,525,13],[526,11,526,13],[527,11,527,13],[528,11,528,13],[517,11,517,13],[518,11,518,13],[519,11,519,13],[520,11,520,13],[521,11,521,13],[522,11,522,13],[547,11,547,13],[548,11,548,13],[549,11,549,13],[550,11,550,13],[551,11,551,13],[552,11,552,13],[541,11,541,13],[542,11,542,13]],"merged_total":1657,"flags":["merged_cut"]}
[]
[null,null,"NOTA: Elegir las caracteristicas del prestamo con las celdas Naranjas e ingresar datos en las celdas de Amarillo y presione el botón Calcular.",null,null,null,null,null,null,null,null,null,null,null,null,null,null,null,null,null,null,null,null,null,null,{"$f":"FACTORES!O29","v":0},{"$f":"IF(Z2>0,\"COMBO\",\"\")","v":""}]
[]
[]
[]
[null,null,null,null,null,"Monto Solicitado",34000,"Soles",null,null,"Tipo de Cronograma",null,null,null,"Tipo Producto","Compra de Deuda"]
[]
[null,null,null,"Tasa Efectiva Mensual Fija",null,null,4.67,"%",null,null,"Mensual",null,null,null,"Gracia Absoluta",null,null,null,"Fecha Fija"]
[]
[null,null,null,null,null,"Plazo (cuotas)",3,null,null,null,"Ptmos en general",null,"Nro cuotas",null,2]
[]
[null,null,null,null,null,"Fecha Desembolso","2024-07-25",null,null,null,"Cargos"]
[null,null,null,null,null,null,1]
[null,null,null,null,null,"Dia de Pago",20,null,null,null,null,"% ITF ",5.0000000000000002E-5,null,{"$f":"TRUNC(((G6/(1-$M$14))-G6),1)+(IF(MOD(((G6/(1-$M$14))-G6)*100, 10)>=5, 5,0)/100)","v":1.7}]
[null,null,null,null,null,null,null,null,null,null,null,null,null,null,null,null,null,null,null,null,null,{"$f":"IF(AND(FACTORES!O28=TRUE,AA2=\"COMBO\"),2.9*G10,0)","v":0}]
[null,null,null,null,null,"Monto Prestado",{"$f":"G6+O14+M17+Q18","v":34165.699999999997},null,null,null,null,"Seg. Desgravamen","Si, Tradicional",null,null,null,null,null,null,null,null,{"$f":"IF(FACTORES!M24=TRUE,FACTORES!L24,0)","v":0},null,null,null,null,null,null,null,null,null,null,null,null,null,null,null,null,null,null,null,null,null,null,null,null,null,null,null,null,null,null,null,null,null,null,null,null,null,null,null,null,null,null,null,null,null,null,null,null,null,null,null,null,null,null,null,null,null,null,null,null,null,{"$f":"IF(AND(CF20=0,CF17>120),1,0)","v":0}]
[null,null,null,null,null,null,null,null,null,null,null,null,{"$f":"IF(CF20=0,IF($M$16=\"Si, Tradicional\",$CE$35,IF(AND($M$16=\"Sí, retorno\",G10>=25),$CF$35,0)),IF($M$16=\"Si, Tradicional\",$CE$36,IF(AND(G10>=25,$M$16=\"Sí, retorno\"),$CF$36)))","v":164},null,null,null,"Microseguros",null,null,null,null,{"$f":"IF(FACTORES!M16=TRUE,FACTORES!L16,0)","v":0},null,null,null,null,null,null,null,null,null,null,null,null,null,null,null,null,null,null,null,null,null,null,null,null,null,null,null,null,null,null,null,null,null,null,null,null,null,null,null,null,null,null,null,null,null,null,null,null,null,null,null,null,null,null,null,null,null,null,null,null,null,{"$f":"G10","v":3},null,null,{"$f":"VLOOKUP($G$10*(CJ23-1),FACTORES!$G:$H,2,1)","v":4.7999999999999996E-3}]
[null,null,null,null,null,"TCEA",{"$f":"IF(G6=\"\",0,(POWER((1+$AT$26),360)-1)*100)","v":75.786584418693565},"%",null,null,"Seguro Multiriesgo",null,null,null,null,null,{"$f":"CG32","v":0},null,null,null,null,{"$f":"IF(FACTORES!M20=TRUE,FACTORES!L20,0)","v":0},null,null,null,null,null,null,null,null,null,null,null,null,null,null,null,null,null,null,null,null,null,null,null,null,null,null,null,null,null,null,null,null,null,null,null,null,null,null,null,null,null,null,null,null,null,null,null,null,null,null,null,null,null,null,null,null,null,null,null,null,null,false]
[]
[null,null,null,null,null,"TEA",{"$f":"IF(D8=\"Tasa Efectiva Mensual Fija\",(POWER((1+G8/100),(360/30))-1)*100,G8)","v":72.928546044337068},"%",null,null,null,null,null,null,null,null,null,null,null,null,null,{"$f":"IF(FACTORES!M33=TRUE,FACTORES!L33,0)","v":0},null,null,null,null,"P1",null,null,null,null,null,null,null,null,null,null,null,null,null,null,null,null,null,null,null,null,null,null,null,null,null,null,null,null,null,null,null,null,null,null,null,null,null,null,null,null,null,null,null,null,null,null,null,null,null,null,null,null,null,null,null,null,{"$f":"IF(CF18=TRUE,1,0)","v":0}]
[null,null,null,null,null,null,null,null,null,null,null,null,null,null,null,null,null,null,null,"Adic",null,{"$f":"IF(AND(FACTORES!M29=TRUE,FACTORES!O28=FALSE),FACTORES!L29,0)","v":0},null,null,null,null,"P2"]
[]
[null,"Los datos emitidos por el simulador son referenciales, la aprobación del crédito está sujeto a evaluación crediticia.",null,null,null,null,null,null,null,null,null,null,null,null,null,null,null,null,null,null,null,null,null,null,null,null,null,null,null,null,null,null,null,null,null,{"$f":"AJ24","v":40884.400000000001},"CUOTA",null,null,null,null,null,null,null,null,null,null,null,null,null,null,null,null,null,null,null,null,null,null,null,null,null,null,null,null,null,null,null,null,null,null,null,null,null,null,null,null,null,"MONEDA",{"$f":"VLOOKUP($H$6,CA24:CB28,2,0)","v":1},"TASA",{"$f":"VLOOKUP($D$8,CC24:CD28,2,0)","v":1},"DESGRAVAMEN",{"$f":"VLOOKUP($M$16,CE24:CF28,2,0)","v":1},"MICROSEGUROS",{"$f":"VLOOKUP($K$8,CG24:CH28,2,0)","v":2},"CRONOGRAMA",{"$f":"VLOOKUP($K$8,CI24:CJ28,2,0)","v":2},"PERIODO GRACIA",{"$f":"VLOOKUP($O$8,CK24:CL28,2,0)","v":3},"FECHAS",{"$f":"VLOOKUP($S$8,CM24:CN28,2,0)","v":1}]
[null,"Los seguros deberán ser cancelados por el cliente al inicio del crédito o si lo requiere como parte del financiamiento. El cliente tiene el derecho a elegir entre: a) La contratación del seguro ofrecido por la empresa.",null,null,null,null,null,null,null,null,null,null,null,null,null,null,null,null,null,null,null,null,null,null,null,null,null,null,null,null,null,null,null,null,null,{"$f":"TRUNC(ROUND($AJ$25/AI29,2),1)","v":40884.400000000001},"CUOTA PREVIA",null,null,null,null,null,null,null,null,null,null,null,null,null,null,null,null,null,null,null,null,null,null,null,null,null,null,null,null,null,null,null,null,null,null,null,null,null,null,null,null,null,"Soles",1,"Tasa Efectiva Mensual Fija",1,"Si, Tradicional",1,"Quincenal",1,"Quincenal",1,"Sin Gracia",1,"Fecha Fija",1]
[null,"b) Un seguro contratado directamente por el cliente o a través de la designación de un corredor de seguros, siempre que cumpla con las condiciones previamente informadas en el certificado o póliza de seguros. ",null,null,null,null,null,null,null,null,null,null,null,null,null,null,null,null,null,null,null,null,null,null,null,null,null,null,null,null,null,null,null,null,{"$f":"AJ25/AI29","v":40884.410314560686},{"$f":"IF($CL$23=3,$G$16*POWER(1+$CC$32,$CK$33-$G$12),$G$16)","v":34165.699999999997},{"$f":"AJ25/SUM(AI31:AI42)","v":12048.564050674267},null,null,null,null,null,null,null,null,null,null,null,null,null,null,null,null,null,null,null,null,null,null,null,null,null,null,null,null,null,null,null,null,null,null,null,null,null,null,null,null,null,"Dolares",2,"Tasa Efectiva Anual Fija",2,"No",2,"Mensual",2,"Mensual",{"$f":"CJ24+1","v":2},"Gracia Relativa",2,"Fecha Variable",2]
[null,"Fecha de actualización: diciembre 2025",null,null,null,null,null,null,null,null,null,null,null,null,null,null,null,null,null,null,null,null,null,null,null,null,null,null,null,null,null,null,null,null,null,null,null,null,null,null,null,null,null,null,null,1.5681740919758075E-3,null,null,null,null,null,null,null,null,null,null,null,null,null,null,null,null,null,null,null,null,null,null,null,null,null,null,null,null,null,null,null,null,"Euros",3,null,null,"Sí, retorno",1,"Bimestral",3,"Bimestral",{"$f":"CJ25+1","v":3},"Gracia Absoluta",3]
[null,null,null,null,null,null,null,"SIMULACION DE CRONOGRAMA DE PAGOS",null,null,null,null,null,null,null,null,null,null,null,null,null,null,null,null,null,null,null,null,null,null,null,null,null,null,null,null,null,null,null,null,null,null,"FECHAS","1RA","2DA",{"$f":"G6-AT29","v":17000.000000134016},null,null,"Quincenal",null,"Mensual",null,"Bimestral",null,"Trimestral",null,null,null,null,null,null,null,null,null,null,null,null,null,null,null,null,null,null,null,null,null,null,null,null,null,null,null,null,null,"Trimestral",4,"Trimestral",{"$f":"CJ26+1","v":4}]
[null,null,null,null,null,null,null,null,null,null,null,null,null,null,null,null,null,null,null,null,null,null,null,null,null,null,null,null,null,null,null,null,"FV Y PGA",null,"FACTOR ACT","FACTOR ACT GR","FACTOR ACT GA","MES","AÑO","DIAS","DIAS ACUM","FIN DE MES","INICIALES","VALIDACION","VALIDACION","VA",null,{"$f":"CJ23","v":2},"DIA","AÑO","MES","AÑO","MES","AÑO","MES","AÑO",{"$f":"INT(G10/2)+1","v":2}]
[null,null,null,null,null,"N°","FECHA PAGO","SALDO",null,null,"CAPITAL","INTERESES",null,null,"Seg.multiriesgo","CUOTA SIN ITF","ITF","CUOTA",null,null,null,null,null,null,null,null,null,null,null,null,null,null,null,null,{"$f":"IF($CL$23=1,SUM(AI30:AI329),IF($CL$23=2,SUM(AJ30:AJ329),SUM(AK30:AK329)))","v":0.83566571554126412},null,null,{"$f":"IF($AV$28=1,AW29,IF($AV$28=2,AY29,IF($AV$28=3,BA29,BC29)))","v":8},{"$f":"IF($AV$28=1,AX29,IF($AV$28=2,AZ29,IF($AV$28=3,BB29,BD29)))","v":2024},null,null,{"$f":"IF($AV$28=1,\"\",DATE(AM31,AL31,1)-1)","v":"2024-08-31"},null,null,null,{"$f":"SUM(AT30:AT329)","v":16999.999999865984},null,null,{"$f":"IF(DAY(G12)>G14,MONTH(G12)+1,MONTH(G12))","v":8},{"$f":"IF(AY29>12,YEAR(G12)+1,YEAR(G12))","v":2024},{"$f":"IF(AND(DAY(G12)>G14,CN23=1),MONTH(G12)+1,MONTH(G12))","v":8},{"$f":"IF(AY29>12,YEAR(G12)+1,YEAR(G12))","v":2024},{"$f":"IF(DAY(G12)>G14,MONTH(G12)+1,MONTH(G12))","v":8},{"$f":"IF(AY29>12,YEAR(G12)+1,YEAR(G12))","v":2024},{"$f":"IF(DAY(G12)>G14,MONTH(G12),MONTH(G12))","v":7},{"$f":"IF(BC29>12,YEAR(G12)+1,YEAR(G12))","v":2024},null,null,null,null,null,null,null,null,null,null,null,null,null,null,null,null,null,null,null,null,null,null,null,null,null,null,null,null,null,null,null,null,null,null,null,null,null,null,null,null,"Gracia Relativa","Gracia Absoluta",null,"FECHA_FINAL","Dias","Dias Acum"]
[null,null,null,null,null,null,null,{"$f":"G16","v":34165.699999999997},null,null,null,null,null,null,null,null,null,null,null,null,null,null,null,null,null,null,null,null,null,null,null,null,null,null,null,null,null,null,null,null,null,null,null,null,null,null,null,null,null,null,null,null,null,null,null,null,null,null,null,null,null,null,null,null,null,null,null,null,null,null,null,null,null,null,null,null,null,null,null,null,null,null,null,null,null,null,null,null,null,null,null,null,null,{"$f":"IF(AND($CL$23=3,$O$10>=$AH31),$G$12,IF(AND($CL$23=3,$CN$23=2),AG31,IF($AV$28=1,$AW$31,IF($CN$23=1,DATE(AM31,AL31,$G$14),IF($AV$28=2,$G$12+30,IF($AV$28=3,$G$12+60,$G$12+90))))))","v":"2024-07-25"}]
[null,null,null,null,null,1,"2024-07-25",{"$f":"H30*POWER(1+$CC$32,G31-$G$12)","v":34165.699999999997},null,null,0,0,null,null,null,{"$f":"K31+L31+O31","v":0},{"$f":"TRUNC(((($P31)/(1-$M$14))-($P31)),1)+(IF(MOD(((($P31)/(1-$M$14))-($P31))*100, 10)>=5, 5, 0)/100)","v":0},{"$f":"Q31+P31","v":0},null,null,null,null,null,null,null,null,null,null,null,null,null,null,{"$f":"$G$12+30","v":"2024-08-24"},1,{"$f":"1/POWER(1+$CC$32,IF($CL$23=3,$CX31,$AO31))","v":1},{"$f":"IF($AH31<=$CK$32,0,1/POWER(1+$CC$32,$CV31-$G$12-VLOOKUP($CK$32,$AH$31:$AO$500,8,0)))","v":0},{"$f":"IF(AND(G$10=3,O$10=2,AH31=G$10),$AI31,IF(OR($AJ31=0,$AJ30=0),0,$AI31))","v":0},{"$f":"IF($AV$28=1,AW31,IF($AV$28=2,AY31,IF($AV$28=3,BA31,BC31)))","v":9},2024,{"$f":"IF($CN$23=2,CW31,CV31-G12)","v":0},{"$f":"IF($CN$23=2,CX31,CV31-$G$12)","v":0},{"$f":"IF($AV$28=1,\"\",DATE(AM32,AL32,1)-1)","v":"2024-09-30"},{"$f":"IF(AND($CL$23=3,$O$10>=$AH31),$G$12,IF(AND($CL$23=3,$CN$23=2),AG31,IF($AV$28=1,$AW$31,IF($CN$23=1,DATE(AM31,AL31,$G$14),IF($AV$28=2,$G$12+30,IF($AV$28=3,$G$12+60,$G$12+90))))))","v":"2024-07-25"},{"$f":"$AQ31+IF(AND(DAY($AQ31)=27,MONTH($AQ31)=7),3,IF(AND(WEEKDAY($AQ31)=5,ISERROR(VLOOKUP($AQ31+1,FACTORES!$A:$A,1,0))=FALSE),4,IF(OR(WEEKDAY($AQ31)=1,ISERROR(VLOOKUP($AQ31,FACTORES!$A:$A,1,0))=FALSE),1,IF(WEEKDAY($AQ31)=7,2,0))))","v":"2024-07-25"},"2024-07-25",{"$f":"P31/POWER(1+$AT$26,AO31)","v":0},null,null,{"$f":"G12+15","v":"2024-08-09"},null,{"$f":"IF(AY29<12,AY29+1,AY29+1-12)","v":9},{"$f":"IF(AY29=12,AZ29+1,AZ29)","v":2024},{"$f":"IF(BA29<=10,BA29+2,IF(BA29=11,1,IF(BA29=12,2,IF(BA29=13,3,4))))","v":10},{"$f":"IF(BA29>=11,BB29+1,BB29)","v":2024},{"$f":"IF(BC29<=9,BC29+3,IF(BC29=10,1,IF(BC29=11,2,IF(BC29=12,3,4))))","v":10},{"$f":"IF(BC29>=10,BD29+1,BD29)","v":2024},{"$f":"DATE(AZ31,AY31,$G$14)","v":"2024-09-20"},{"$f":"$BE31+IF(OR(WEEKDAY($BE31)=1,ISERROR(VLOOKUP($BE31,FACTORES!$A:$A,1,0))=FALSE),1,IF(WEEKDAY($BE31)=7,2,0))","v":"2024-09-20"},{"$f":"IF(AND(DAY($BE31)=27,WEEKDAY($BE31)=1),$BE31-2,IF(AND(DAY($BE31)=27,WEEKDAY($BE31)=7),$BE31-1,IF(AND(DAY($BE31)=26,WEEKDAY($BE31)=1),$BE31-2,IF(AND(DAY($BE31)=26,WEEKDAY($BE31)=7),$BE31-1,IF(DAY($BF31)=15,$BF31+2,IF(DAY($BF31)=16,$BF31+1,$BF31))))))","v":"2024-09-20"},null,null,null,null,null,null,null,null,null,null,null,null,null,null,null,null,null,null,null,null,null,{"$f":"IF(CD23=1,$G$8*12,(POWER(1+$G$8/100,1/12)-1)*1200)","v":56.04},null,{"$f":"IF($CF$20=1,FACTORES!$C$4,IF(K8=\"Quincenal\",VLOOKUP($G$10,FACTORES!$G:$H,2,1),VLOOKUP($G$10*(CJ23-1),FACTORES!$G:$H,2,1)))","v":4.7999999999999996E-3},{"$f":"IF($CF$20=1,FACTORES!$C$4,IF(K8=\"Quincenal\",VLOOKUP($G$10,FACTORES!$G:$H,2,1),VLOOKUP($G$10*(CJ23-1),FACTORES!$AC:$AE,3)))","v":{"$error":"#N/A"}},{"$f":"SUM(V15:V21)","v":0},null,null,null,"Valida Gracia",null,null,null,1,{"$f":"$CP$30+IF(DAY($CP$30+1)=16,2,IF(DAY($CP$30)=15,1,IF(DAY($CP$30)=28,4,IF(WEEKDAY($CP$30)=7,2,IF(WEEKDAY($CP$30)=1,1,0)))))","v":"2024-07-25"},{"$f":"$CP31+IF(AND(WEEKDAY($CP31)=6,ISERROR(VLOOKUP($CP31,FACTORES!$A:$A,1,0))=FALSE),2,0)","v":"2024-07-25"},{"$f":"CQ31+IF(WEEKDAY(CQ31)=7,2,IF(WEEKDAY(CQ31)=1,1,IF(AND(WEEKDAY(CQ31)=6,ISERROR(VLOOKUP(CQ31,FACTORES!$A:$A,1,0))=FALSE),3,0)))","v":"2024-07-25"},{"$f":"$CR31+IF(AND(WEEKDAY($CR31)=6, ISERROR(VLOOKUP($CR31,FACTORES!$A:$A,1,0))=FALSE),2,0)","v":"2024-07-25"},{"$f":"IF(AND($CL$23=3,$O$10>=$CO31),$G$12,$CS31)","v":"2024-07-25"},null,{"$f":"IF($CN$23=1,IF(OR($CL$23=3,$CL$23=2),$CT31,AS31),IF(AND($CN$23=2,$CL$23=3),CT31,CS31))","v":"2024-07-25"},{"$f":"CV31-$G$12","v":0},{"$f":"IF($CL$23=3,0,CW31+CW30)","v":0}]
[null,null,null,null,null,{"$f":"F31+1","v":2},"2024-07-25",{"$f":"H31*POWER(1+$CC$32,G32-G31)","v":34165.699999999997},null,null,0,0,null,null,null,{"$f":"K32+L32+O32","v":0},{"$f":"TRUNC(((($P32)/(1-$M$14))-($P32)),1)+(IF(MOD(((($P32)/(1-$M$14))-($P32))*100, 10)>=5, 5, 0)/100)","v":0},{"$f":"Q32+P32","v":0},null,null,null,null,null,null,null,null,null,null,null,null,null,null,{"$f":"AG31+30","v":"2024-09-23"},{"$f":"AH31+1","v":2},{"$f":"1/POWER(1+$CC$32,IF($CL$23=3,$CX32,$AO32))","v":1},{"$f":"IF($AH32<=$CK$32,0,1/POWER(1+$CC$32,$CV32-$G$12-VLOOKUP($CK$32,$AH$31:$AO$500,8,0)))","v":0},{"$f":"IF(AND(G$10=3,O$10=2,AH32=G$10),$AI32,IF(OR($AJ32=0,$AJ31=0),0,$AI32))","v":0},10,2024,{"$f":"CV32-CV31","v":0},{"$f":"IF($CN$23=2,CX32,CV32-$G$12)","v":0},{"$f":"IF($AV$28=1,\"\",DATE(AM33,AL33,1)-1)","v":"2024-10-31"},{"$f":"IF(AND($CL$23=3,$O$10>=$AH32),$G$12,IF(AND($CL$23=3,$CN$23=2),AG32,IF($AV$28=1,$AW32,IF($CN$23=1,DATE(AM32,AL32,$G$14),IF($AV$28=2,AS31+30,IF($AV$28=3,AS31+60,AS31+90))))))","v":"2024-07-25"},{"$f":"$AQ32+IF(AND(DAY($AQ32)=27,MONTH($AQ32)=7),3,IF(AND(WEEKDAY($AQ32)=5,ISERROR(VLOOKUP($AQ32+1,FACTORES!$A:$A,1,0))=FALSE),4,IF(OR(WEEKDAY($AQ32)=1,ISERROR(VLOOKUP($AQ32,FACTORES!$A:$A,1,0))=FALSE),1,IF(WEEKDAY($AQ32)=7,2,0))))","v":"2024-07-25"},"2024-07-25",{"$f":"P32/POWER(1+$AT$26,AO32)","v":0},null,null,"2024-09-20",null,{"$f":"IF(AY31<12,AY31+1,AY31+1-12)","v":10},{"$f":"IF(AY31=12,AZ31+1,AZ31)","v":2024},{"$f":"IF(BA31<=10,BA31+2,IF(BA31=11,1,IF(BA31=12,2,IF(BA31=13,3,4))))","v":12},{"$f":"IF(BA31>=11,BB31+1,BB31)","v":2024},{"$f":"IF(BC31<=9,BC31+3,IF(BC31=10,1,IF(BC31=11,2,IF(BC31=12,3,4))))","v":1},{"$f":"IF(BC31>=10,BD31+1,BD31)","v":2025},{"$f":"DATE(AZ32,AY32,$G$14)","v":"2024-10-20"},{"$f":"$BE32+IF(OR(WEEKDAY($BE32)=1,ISERROR(VLOOKUP($BE32,FACTORES!$A:$A,1,0))=FALSE),1,IF(WEEKDAY($BE32)=7,2,0))","v":"2024-10-21"},"2024-10-21",null,null,null,null,null,null,null,null,null,null,null,null,null,null,null,null,null,null,null,null,null,{"$f":"POWER(1+CC31/1200,1/30)-1","v":1.5225698635765728E-3},null,{"$f":"IF(CF23=1,CE31,0)","v":4.7999999999999996E-3},{"$f":"IF(CF23=1,CF31,0)","v":{"$error":"#N/A"}},{"$f":"CG31","v":0},null,null,null,{"$f":"O10","v":2},null,null,null,{"$f":"CO31+1","v":2},null,{"$f":"CS31+30","v":"2024-08-24"},{"$f":"$CQ32+IF(WEEKDAY($CQ32)=7,2,IF(WEEKDAY($CQ32)=1,1,0))","v":"2024-08-26"},{"$f":"$CR32+IF(AND(WEEKDAY($CR32)=6, ISERROR(VLOOKUP($CR32,FACTORES!$A:$A,1,0))=FALSE),3,0)","v":"2024-08-26"},"2024-07-25",null,{"$f":"IF($CN$23=1,IF(AND($CL$23=3,CT32=CT31),$CT32,AS32),IF(AND($CN$23=2,$CL$23=3),CT32,CS32))","v":"2024-07-25"},{"$f":"(CV32-CV31)","v":0},{"$f":"IF(OR($CL$23=2,$CL$23=1),CW32+CX31,IF(CX30=0,CW32,CW32+CX31))","v":0}]
[null,null,null,null,null,{"$f":"F32+1","v":3},"2024-11-20",{"$f":"H32-K33","v":17074.109999999997},null,null,17091.59,3361.07,null,null,null,{"$f":"K33+L33+O33","v":20452.66},{"$f":"TRUNC(((($P33)/(1-$M$14))-($P33)),1)+(IF(MOD(((($P33)/(1-$M$14))-($P33))*100, 10)>=5, 5, 0)/100)","v":1},{"$f":"Q33+P33","v":20453.66},null,null,null,null,null,null,null,null,null,null,null,null,null,null,{"$f":"AG32+30","v":"2024-10-23"},{"$f":"AH32+1","v":3},{"$f":"1/POWER(1+$CC$32,IF($CL$23=3,$CX33,$AO33))","v":0.83566571554126412},{"$f":"IF($AH33<=$CK$32,0,1/POWER(1+$CC$32,$CV33-$G$12-VLOOKUP($CK$32,$AH$31:$AO$500,8,0)))","v":0.83566571554126412},{"$f":"IF(AND(G$10=3,O$10=2,AH33=G$10),$AI33,IF(OR($AJ33=0,$AJ32=0),0,$AI33))","v":0.83566571554126412},11,2024,{"$f":"CV33-CV32","v":118},{"$f":"IF($CN$23=2,CX33,CV33-$G$12)","v":118},null,{"$f":"IF(AND($CL$23=3,$O$10>=$AH33),$G$12,IF(AND($CL$23=3,$CN$23=2),AG33,IF($AV$28=1,$AW33,IF($CN$23=1,DATE(AM33,AL33,$G$14),IF($AV$28=2,AS32+30,IF($AV$28=3,AS32+60,AS32+90))))))","v":"2024-11-20"},{"$f":"$AQ33+IF(AND(DAY($AQ33)=27,MONTH($AQ33)=7),3,IF(AND(WEEKDAY($AQ33)=5,ISERROR(VLOOKUP($AQ33+1,FACTORES!$A:$A,1,0))=FALSE),4,IF(OR(WEEKDAY($AQ33)=1,ISERROR(VLOOKUP($AQ33,FACTORES!$A:$A,1,0))=FALSE),1,IF(WEEKDAY($AQ33)=7,2,0))))","v":"2024-11-20"},"2024-11-20",{"$f":"P33/POWER(1+$AT$26,AO33)","v":16999.999999865984},null,null,{"$f":"AW32+15","v":"2024-10-05"},null,{"$f":"IF(AY32<12,AY32+1,AY32+1-12)","v":11},{"$f":"IF(AY32=12,AZ32+1,AZ32)","v":2024},{"$f":"IF(BA32<=10,BA32+2,IF(BA32=11,1,IF(BA32=12,2,IF(BA32=13,3,4))))","v":2},{"$f":"IF(BA32>=11,BB32+1,BB32)","v":2025},{"$f":"IF(BC32<=9,BC32+3,IF(BC32=10,1,IF(BC32=11,2,IF(BC32=12,3,4))))","v":4},{"$f":"IF(BC32>=10,BD32+1,BD32)","v":2025},{"$f":"DATE(AZ33,AY33,$G$14)","v":"2024-11-20"},{"$f":"$BE33+IF(OR(WEEKDAY($BE33)=1,ISERROR(VLOOKUP($BE33,FACTORES!$A:$A,1,0))=FALSE),1,IF(WEEKDAY($BE33)=7,2,0))","v":"2024-11-20"},"2024-11-20",null,null,null,null,null,null,null,null,null,null,null,null,null,null,null,null,null,null,null,null,null,null,null,null,null,null,null,null,null,{"$f":"IF($CL$23=3,$G$12,VLOOKUP($CK$32,$AH$31:$CV$500,67,0))","v":"2024-07-25"},null,null,null,{"$f":"CO32+1","v":3},null,{"$f":"CS32+30","v":"2024-09-25"},"2024-09-25",{"$f":"$CR33+IF(AND(WEEKDAY($CR33)=6, ISERROR(VLOOKUP($CR33,FACTORES!$A:$A,1,0))=FALSE),3,0)","v":"2024-09-25"},"2024-09-25",null,{"$f":"IF($CN$23=1,IF(AND($CL$23=3,CT33=CT32),$CT33,AS33),IF(AND($CN$23=2,$CL$23=3),CT33,CS33))","v":"2024-11-20"},{"$f":"(CV33-CV32)","v":118},{"$f":"IF(OR($CL$23=2,$CL$23=1),CW33+CX32,IF(CX31=0,CW33,CW33+CX32))","v":118}]
[null,null,null,null,null,null,null,null,null,null,null,null,null,null,null,null,null,null,null,null,null,null,null,null,null,null,null,null,null,null,null,null,null,4,null,null,null,null,null,null,null,null,null,null,null,null,null,null,"2024-10-21",null,12,2024,4,2025,7,2025,"2024-12-20",{"$f":"$BE34+IF(OR(WEEKDAY($BE34)=1,ISERROR(VLOOKUP($BE34,FACTORES!$A:$A,1,0))=FALSE),1,IF(WEEKDAY($BE34)=7,2,0))","v":"2024-12-20"},"2024-12-20",null,null,null,null,null,null,null,null,null,null,null,null,null,null,null,null,null,null,null,null,null,null,null,null,null,null,null,null,null,null,null,null,null,4,null,"2024-10-25","2024-10-25",{"$f":"$CR34+IF(AND(WEEKDAY($CR34)=6, ISERROR(VLOOKUP($CR34,FACTORES!$A:$A,1,0))=FALSE),3,0)","v":"2024-10-25"},"2024-10-25",null,"00:00:00",-45616,-45616]
[null,null,null,null,null,null,null,null,null,null,{"$f":"SUM(K$31:K33)","v":17091.59},{"$f":"SUM(L$31:N33)","v":3361.07},null,null,null,{"$f":"SUM(P$31:P33)","v":20452.66},null,{"$f":"SUM(R$31:S33)","v":20453.66},null,null,null,null,null,null,null,null,null,null,null,null,null,null,null,5,null,null,null,null,null,null,null,null,null,null,null,null,null,null,{"$f":"AW34+15","v":"2024-11-05"},null,null,null,null,null,null,null,null,null,null,null,null,null,null,null,null,null,null,null,null,null,null,null,null,null,null,null,null,null,0.40799999999999997,null,null,null,{"$f":"ROUND((G6+O14+Q18)*$CE$32/(1-$CE$32),2)","v":164},{"$f":"ROUND((G6+O14+Q18)*$CF$32/(1-$CF$32),2)","v":{"$error":"#N/A"}},null,null,null,null,null,null,null,null,null,null,null,null,null,null,null,null,{"$f":"(CV35-CV34)","v":0},{"$f":"IF(OR($CL$23=2,$CL$23=1),CW35+CX34,IF(CX33=0,CW35,CW35+CX34))","v":-45616}]
[null,null,null,null,null,null,null,null,null,null,null,null,null,null,null,null,null,null,null,null,null,null,null,null,null,null,null,null,null,null,null,null,null,null,null,null,null,null,null,null,null,null,null,null,null,null,null,null,null,null,null,null,null,null,null,null,null,null,null,null,null,null,null,null,null,null,null,null,null,null,null,null,null,null,null,null,null,null,{"$f":"CA35/12","v":3.3999999999999996E-2},null,{"$f":"(1+CA35/12)^12-1","v":0.49364182107104404},null,{"$f":"$CE$35*$G$10","v":492},{"$f":"$CF$35*$G$10","v":{"$error":"#N/A"}},null,null,null,null,null,null,null,null,null,null,null,null,null,null,null,null,0,-45616]
[null,null,null,null,null,null,null,null,null,null,null,null,null,null,null,null,null,null,null,null,null,null,null,null,null,null,null,null,null,null,null,null,null,null,null,null,null,null,null,null,null,null,null,null,null,null,null,null,{"$f":"AW36+15","v":"1900-01-15"},null,null,null,null,null,null,null,null,null,null,null,null,null,null,null,null,null,null,null,null,null,null,null,null,null,null,null,null,null,null,null,{"$f":"CC36*100","v":49.364182107104405},null,null,null,null,null,null,null,null,null,null,null,null,null,null,null,null,null,null,null,0,-45616]
[null,null,null,null,null,null,null,null,null,null,null,null,null,null,null,null,null,null,null,null,null,null,null,null,null,null,null,null,null,null,null,null,null,null,null,null,null,null,null,null,null,null,null,null,null,null,null,null,null,null,null,null,null,null,null,null,null,null,null,null,null,null,null,null,null,null,null,null,null,null,null,null,null,null,null,null,null,null,null,null,{"$f":"(1+CC36)^(1/365)-1","v":1.0998298849564936E-3},null,null,null,null,null,null,null,null,null,null,null,null,null,null,null,null,null,null,null,0,-45616]
[null,null,null,null,null,null,null,null,null,null,null,null,null,null,null,null,null,null,null,null,null,null,null,null,null,null,null,null,null,null,null,null,null,null,null,null,null,null,null,null,null,null,null,null,null,null,null,null,null,null,null,null,null,null,null,null,null,null,null,null,null,null,null,null,null,null,null,null,null,null,null,null,null,null,null,null,null,null,null,null,null,null,null,null,null,null,null,null,null,null,null,null,null,null,null,null,null,null,null,null,0,-45616]
[null,null,null,null,null,null,null,null,null,null,null,null,null,null,null,null,null,null,null,null,null,null,null,null,null,null,null,null,null,null,null,null,null,null,null,null,null,null,null,null,null,null,null,null,null,null,null,null,null,null,null,null,null,null,null,null,null,null,null,null,null,null,null,null,null,null,null,null,null,null,null,null,null,null,null,null,null,null,null,null,null,null,null,null,null,null,null,null,null,null,null,null,null,null,null,null,null,null,null,null,0,-45616]
[null,null,null,null,null,null,null,null,null,null,null,null,null,null,null,null,null,null,null,null,null,null,null,null,null,null,null,null,null,null,null,null,null,null,null,null,null,null,null,null,null,null,null,null,null,null,null,null,null,null,null,null,null,null,null,null,null,null,null,null,null,null,null,null,null,null,null,null,null,null,null,null,null,null,null,null,null,null,null,null,null,null,null,null,null,null,null,null,null,null,null,null,null,null,null,null,null,null,null,null,0,-45616]
[null,null,null,null,null,null,null,null,null,null,null,null,null,null,null,null,null,null,null,null,null,null,null,null,null,null,null,null,null,null,null,null,null,null,null,null,null,null,null,null,null,null,null,null,null,null,null,null,null,null,null,null,null,null,null,null,null,null,null,null,null,null,null,null,null,null,null,null,null,null,null,null,null,null,null,null,null,null,null,null,null,null,null,null,null,null,null,null,null,null,null,null,null,null,null,null,null,null,null,null,0,-45616]
[null,null,null,null,null,null,null,null,null,null,null,null,null,null,null,null,null,null,null,null,null,null,null,null,null,null,null,null,null,null,null,null,null,null,null,null,null,null,null,null,null,null,null,null,null,null,null,null,null,null,null,null,null,null,null,null,null,null,null,null,null,null,null,null,null,null,null,null,null,null,null,null,null,null,null,null,null,null,null,null,null,null,null,null,null,null,null,null,null,null,null,null,null,null,null,null,null,null,null,null,{"$f":"(CV43-CV42)","v":0},{"$f":"IF(OR($CL$23=2,$CL$23=1),CW43+CX42,IF(CX41=0,CW43,CW43+CX42))","v":-45616}]
[null,null,null,null,null,null,null,null,null,null,null,null,null,null,null,null,null,null,null,null,null,null,null,null,null,null,null,null,null,null,null,null,null,null,null,null,null,null,null,null,null,null,null,null,null,null,null,null,null,null,null,null,null,null,null,null,null,null,null,null,null,null,null,null,null,null,null,null,null,null,null,null,null,null,null,null,null,null,null,null,null,null,null,null,null,null,null,null,null,null,null,null,null,null,null,null,null,null,null,null,{"$f":"(CV44-CV43)","v":0},{"$f":"IF(OR($CL$23=2,$CL$23=1),CW44+CX43,IF(CX42=0,CW44,CW44+CX43))","v":-45616}]
[null,null,null,null,null,null,null,null,null,null,null,null,null,null,null,null,null,null,null,null,null,null,null,null,null,null,null,null,null,null,null,null,null,null,null,null,null,null,null,null,null,null,null,null,null,null,null,null,null,null,null,null,null,null,null,null,null,null,null,null,null,null,null,null,null,null,null,null,null,null,null,null,null,null,null,null,null,null,null,null,null,null,null,null,null,null,null,null,null,null,null,null,null,null,null,null,null,null,null,null,0,-45616]
[null,null,null,null,null,null,null,null,null,null,null,null,null,null,null,null,null,null,null,null,null,null,null,null,null,null,null,null,null,null,null,null,null,null,null,null,null,null,null,null,null,null,null,null,null,null,null,null,null,null,null,null,null,null,null,null,null,null,null,null,null,null,null,null,null,null,null,null,null,null,null,null,null,null,null,null,null,null,null,null,null,null,null,null,null,null,null,null,null,null,null,null,null,null,null,null,null,null,null,null,0,-45616]
[null,null,null,null,null,null,null,null,null,null,null,null,null,null,null,null,null,null,null,null,null,null,null,null,null,null,null,null,null,null,null,null,null,null,null,null,null,null,null,null,null,null,null,null,null,null,null,null,null,null,null,null,null,null,null,null,null,null,null,null,null,null,null,null,null,null,null,null,null,null,null,null,null,null,null,null,null,null,null,null,null,null,null,null,null,null,null,null,null,null,null,null,null,null,null,null,null,null,null,null,{"$f":"(CV47-CV46)","v":0},{"$f":"IF(OR($CL$23=2,$CL$23=1),CW47+CX46,IF(CX45=0,CW47,CW47+CX46))","v":-45616}]
[null,null,null,null,null,null,null,null,null,null,null,null,null,null,null,null,null,null,null,null,null,null,null,null,null,null,null,null,null,null,null,null,null,null,null,null,null,null,null,null,null,null,null,null,null,null,null,null,null,null,null,null,null,null,null,null,null,null,null,null,null,null,null,null,null,null,null,null,null,null,null,null,null,null,null,null,null,null,null,null,null,null,null,null,null,null,null,null,null,null,null,null,null,null,null,null,null,null,null,null,0,-45616]
[null,null,null,null,null,null,null,null,null,null,null,null,null,null,null,null,null,null,null,null,null,null,null,null,null,null,null,null,null,null,null,null,null,null,null,null,null,null,null,null,null,null,null,null,null,null,null,null,null,null,null,null,null,null,null,null,null,null,null,null,null,null,null,null,null,null,null,null,null,null,null,null,null,null,null,null,null,null,null,null,null,null,null,null,null,null,null,null,null,null,null,null,null,null,null,null,null,null,null,null,0,-45616]
[null,null,null,null,null,null,null,null,null,null,null,null,null,null,null,null,null,null,null,null,null,null,null,null,null,null,null,null,null,null,null,null,null,null,null,null,null,null,null,null,null,null,null,null,null,null,null,null,null,null,null,null,null,null,null,null,null,null,null,null,null,null,null,null,null,null,null,null,null,null,null,null,null,null,null,null,null,null,null,null,null,null,null,null,null,null,null,null,null,null,null,null,null,null,null,null,null,null,null,null,0,-45616]
[null,null,null,null,null,null,null,null,null,null,null,null,null,null,null,null,null,null,null,null,null,null,null,null,null,null,null,null,null,null,null,null,null,null,null,null,null,null,null,null,null,null,null,null,null,null,null,null,null,null,null,null,null,null,null,null,null,null,null,null,null,null,null,null,null,null,null,null,null,null,null,null,null,null,null,null,null,null,null,null,null,null,null,null,null,null,null,null,null,null,null,null,null,null,null,null,null,null,null,null,0,-45616]
[null,null,null,null,null,null,null,null,null,null,null,null,null,null,null,null,null,null,null,null,null,null,null,null,null,null,null,null,null,null,null,null,null,null,null,null,null,null,null,null,null,null,null,null,null,null,null,null,null,null,null,null,null,null,null,null,null,null,null,null,null,null,null,null,null,null,null,null,null,null,null,null,null,null,null,null,null,null,null,null,null,null,null,null,null,null,null,null,null,null,null,null,null,null,null,null,null,null,null,null,0,-45616]
[null,null,null,null,null,null,null,null,null,null,null,null,null,null,null,null,null,null,null,null,null,null,null,null,null,null,null,null,null,null,null,null,null,null,null,null,null,null,null,null,null,null,null,null,null,null,null,null,null,null,null,null,null,null,null,null,null,null,null,null,null,null,null,null,null,null,null,null,null,null,null,null,null,null,null,null,null,null,null,null,null,null,null,null,null,null,null,null,null,null,null,null,null,null,null,null,null,null,null,null,0,-45616]
[]
[]
[]
[]
[]
[]
[]
[]
[]
[]
[]
[]
[]
[]
[]
[]
[]
[]
[]
[]
[]
[]
[]
[]
[]
[]
[]
[]
[]
[]
[]
[]
[]
[]
[]
[]
[]
[]
[]
[]
[]
[]
[]
[]
[]
[]
[]
[]
[]
[]
[]
[]
[]
[]
[]
[]
[]
[]
[]
[]
[]
[]
[]
[]
[]
[]
[]
[]
[]
[]
[]
[]
[]
[]
[]
[]
[]
[]
[]
[]
[]
[]
[]
[]
[]
[]
[]
[]
[]
[]
[]
[]
[]
[]
[]
[]
[]
[]
[]
[]
[]
[]
[]
[]
[]
[]
[]
[]
[]
[]
[]
[]
[]
[]
[]
[]
[]
[]
[]
[]
[]
[]
[]
[]
[]
[]
[]
[]
[]
[]
[]
[]
[]
[]
[]
[]
[]
[]
[]
[]
[]
[]
[]
[]
[]
[]
[]
[]
[]
[]
[]
[]
[]
[]
[]
[]
[]
[]
[]
[]
[]
[]
[]
[]
[]
[]
[]
[]
[]
[]
[]
[]
[]
[]
[]
[]
[]
[]
[]
[]
[]
[]
[]
[]
[]
[]
[]
[]
[]
[]
[]
[]
[]
[]
[]
[]
[]
[]
[]
[]
[]
[]
[]
[]
[]
[]
[]
[]
[]
[]
[]
[]
[]
[]
[]
[]
[]
[]
[]
[]
[]
[]
[]
[]
[]
[]
[]
[]
[]
[]
[]
[]
[]
[]
[]
[]
[]
[]
[]
[]
[]
[]
[]
[]
[]
[]
[]
[]
[]
[]
[]
[]
[]
[]
[]
[]
[]
[]
[]
[]
[]
[]
[]
[]
[]
[]
[]
[]
[]
[]
[]
[]
[]
[]
[]
[]
[]
[]
[]
[]
[]
[]
[]
[]
[]
[]
[]
[]
[]
[]
[]
[]
[]
[]
[]
[]
[]
[]
[]
[]
[]
[]
[]
[]
[]
[]
[]
[]
[]
[]
[]
[]
[]
[]
[]
[]
[]
[]
[]
[]
[]
[]
[]
[]
[]
[]
[]
[]
[]
[]
[]
[]
[]
[]
[]
[]
[]
[]
[]
[]
[]
[]
[]
[]
[]
[]
[]
[]
[]
[]
[]
[]
[]
[]
[]
[]
[]
[]
[]
[]
[]
[]
[]
[]
[]
[]
[]
[]
[]
[]
[]
[]
[]
[]
[]
[]
[]
[]
[]
[]
[]
[]
[]
[]
[]
[]
[]
[]
[]
[]
[]
[]
[]
[]
[]
[]
[]
[]
[]
[]
[]
[]
[]
[]
[]
[]
[]
[]
[]
[]
[]
[]
[]
[]
[]
[]
[]
[]
[]
[]
[]
[]
[]
[]
[]
[]
[]
[]
[]
[]
[]
[]
[]
[]
[]
[]
[]
[]
[]
[]
[]
[]
[]
[]
[]
[]
[]
[]
[]
[]
[]
[]
[]
[]
[]
[]
[]
[]
[]
[]
[]
[]
[]
[]
[]
[]
[]
[]
[]
[]
[]
[]
[]
[]
[]
[]
[]
[]
[]
[]
[]
[]
[]
[]
[]
[]
[]
[]
[]
[]
[]
[]
[]
[]
[]
[]
[]
[null,null,null,null,null,null,null,null,null,null,null,null,null,null,null,null,null,null,null,null,null,null,null,null,null,null,null,null,null,null,null,null,{"$f":"AG550+30","v":"1900-01-30"}]
[null,null,null,null,null,null,null,null,null,null,null,null,null,null,null,null,null,null,null,null,null,null,null,null,null,null,null,null,null,null,null,null,60]
[null,null,null,null,null,null,null,null,null,null,null,null,null,null,null,null,null,null,null,null,null,null,null,null,null,null,null,null,null,null,null,null,"1900-03-30"]
[null,null,null,null,null,null,null,null,null,null,null,null,null,null,null,null,null,null,null,null,null,null,null,null,null,null,null,null,null,null,null,null,"1900-04-29"]
[null,null,null,null,null,null,null,null,null,null,null,null,null,null,null,null,null,null,null,null,null,null,null,null,null,null,null,null,null,null,null,null,"1900-05-29"]
[null,null,null,null,null,null,null,null,null,null,null,null,null,null,null,null,null,null,null,null,null,null,null,null,null,null,null,null,null,null,null,null,"1900-06-28"]
[null,null,null,null,null,null,null,null,null,null,null,null,null,null,null,null,null,null,null,null,null,null,null,null,null,null,null,null,null,null,null,null,"1900-07-28"]
[null,null,null,null,null,null,null,null,null,null,null,null,null,null,null,null,null,null,null,null,null,null,null,null,null,null,null,null,null,null,null,null,"1900-08-27"]
[null,null,null,null,null,null,null,null,null,null,null,null,null,null,null,null,null,null,null,null,null,null,null,null,null,null,null,null,null,null,null,null,"1900-09-26"]
[null,null,null,null,null,null,null,null,null,null,null,null,null,null,null,null,null,null,null,null,null,null,null,null,null,null,null,null,null,null,null,null,"1900-10-26"]
[null,null,null,null,null,null,null,null,null,null,null,null,null,null,null,null,null,null,null,null,null,null,null,null,null,null,null,null,null,null,null,null,"1900-11-25"]
[null,null,null,null,null,null,null,null,null,null,null,null,null,null,null,null,null,null,null,null,null,null,null,null,null,null,null,null,null,null,null,null,"1900-12-25"]
[null,null,null,null,null,null,null,null,null,null,null,null,null,null,null,null,null,null,null,null,null,null,null,null,null,null,null,null,null,null,null,null,"1901-01-24"]
[null,null,null,null,null,null,null,null,null,null,null,null,null,null,null,null,null,null,null,null,null,null,null,null,null,null,null,null,null,null,null,null,"1901-02-23"]
[null,null,null,null,null,null,null,null,null,null,null,null,null,null,null,null,null,null,null,null,null,null,null,null,null,null,null,null,null,null,null,null,"1901-03-25"]
[null,null,null,null,null,null,null,null,null,null,null,null,null,null,null,null,null,null,null,null,null,null,null,null,null,null,null,null,null,null,null,null,"1901-04-24"]
[null,null,null,null,null,null,null,null,null,null,null,null,null,null,null,null,null,null,null,null,null,null,null,null,null,null,null,null,null,null,null,null,"1901-05-24"]
[null,null,null,null,null,null,null,null,null,null,null,null,null,null,null,null,null,null,null,null,null,null,null,null,null,null,null,null,null,null,null,null,"1901-06-23"]
[null,null,null,null,null,null,null,null,null,null,null,null,null,null,null,null,null,null,null,null,null,null,null,null,null,null,null,null,null,null,null,null,"1901-07-23"]
[null,null,null,null,null,null,null,null,null,null,null,null,null,null,null,null,null,null,null,null,null,null,null,null,null,null,null,null,null,null,null,null,"1901-08-22"]
[null,null,null,null,null,null,null,null,null,null,null,null,null,null,null,null,null,null,null,null,null,null,null,null,null,null,null,null,null,null,null,null,"1901-09-21"]
[null,null,null,null,null,null,null,null,null,null,null,null,null,null,null,null,null,null,null,null,null,null,null,null,null,null,null,null,null,null,null,null,"1901-10-21"]
[null,null,null,null,null,null,null,null,null,null,null,null,null,null,null,null,null,null,null,null,null,null,null,null,null,null,null,null,null,null,null,null,"1901-11-20"]
[null,null,null,null,null,null,null,null,null,null,null,null,null,null,null,null,null,null,null,null,null,null,null,null,null,null,null,null,null,null,null,null,"1901-12-20"]
[null,null,null,null,null,null,null,null,null,null,null,null,null,null,null,null,null,null,null,null,null,null,null,null,null,null,null,null,null,null,null,null,"1902-01-19"]
[null,null,null,null,null,null,null,null,null,null,null,null,null,null,null,null,null,null,null,null,null,null,null,null,null,null,null,null,null,null,null,null,"1902-02-18"]
[null,null,null,null,null,null,null,null,null,null,null,null,null,null,null,null,null,null,null,null,null,null,null,null,null,null,null,null,null,null,null,null,"1902-03-20"]
[null,null,null,null,null,null,null,null,null,null,null,null,null,null,null,null,null,null,null,null,null,null,null,null,null,null,null,null,null,null,null,null,"1902-04-19"]
[null,null,null,null,null,null,null,null,null,null,null,null,null,null,null,null,null,null,null,null,null,null,null,null,null,null,null,null,null,null,null,null,"1902-05-19"]
[null,null,null,null,null,null,null,null,null,null,null,null,null,null,null,null,null,null,null,null,null,null,null,null,null,null,null,null,null,null,null,null,"1902-06-18"]
[null,null,null,null,null,null,null,null,null,null,null,null,null,null,null,null,null,null,null,null,null,null,null,null,null,null,null,null,null,null,null,null,"1902-07-18"]
[null,null,null,null,null,null,null,null,null,null,null,null,null,null,null,null,null,null,null,null,null,null,null,null,null,null,null,null,null,null,null,null,"1902-08-17"]
[null,null,null,null,null,null,null,null,null,null,null,null,null,null,null,null,null,null,null,null,null,null,null,null,null,null,null,null,null,null,null,null,"1902-09-16"]
[null,null,null,null,null,null,null,null,null,null,null,null,null,null,null,null,null,null,null,null,null,null,null,null,null,null,null,null,null,null,null,null,"1902-10-16"]
[null,null,null,null,null,null,null,null,null,null,null,null,null,null,null,null,null,null,null,null,null,null,null,null,null,null,null,null,null,null,null,null,"1902-11-15"]
[null,null,null,null,null,null,null,null,null,null,null,null,null,null,null,null,null,null,null,null,null,null,null,null,null,null,null,null,null,null,null,null,"1902-12-15"]
[null,null,null,null,null,null,null,null,null,null,null,null,null,null,null,null,null,null,null,null,null,null,null,null,null,null,null,null,null,null,null,null,"1903-01-14"]
[null,null,null,null,null,null,null,null,null,null,null,null,null,null,null,null,null,null,null,null,null,null,null,null,null,null,null,null,null,null,null,null,"1903-02-13"]
[null,null,null,null,null,null,null,null,null,null,null,null,null,null,null,null,null,null,null,null,null,null,null,null,null,null,null,null,null,null,null,null,"1903-03-15"]
[null,null,null,null,null,null,null,null,null,null,null,null,null,null,null,null,null,null,null,null,null,null,null,null,null,null,null,null,null,null,null,null,"1903-04-14"]
[null,null,null,null,null,null,null,null,null,null,null,null,null,null,null,null,null,null,null,null,null,null,null,null,null,null,null,null,null,null,null,null,"1903-05-14"]
[null,null,null,null,null,null,null,null,null,null,null,null,null,null,null,null,null,null,null,null,null,null,null,null,null,null,null,null,null,null,null,null,"1903-06-13"]
[null,null,null,null,null,null,null,null,null,null,null,null,null,null,null,null,null,null,null,null,null,null,null,null,null,null,null,null,null,null,null,null,"1903-07-13"]
[null,null,null,null,null,null,null,null,null,null,null,null,null,null,null,null,null,null,null,null,null,null,null,null,null,null,null,null,null,null,null,null,"1903-08-12"]
[null,null,null,null,null,null,null,null,null,null,null,null,null,null,null,null,null,null,null,null,null,null,null,null,null,null,null,null,null,null,null,null,"1903-09-11"]
[null,null,null,null,null,null,null,null,null,null,null,null,null,null,null,null,null,null,null,null,null,null,null,null,null,null,null,null,null,null,null,null,"1903-10-11"]
[null,null,null,null,null,null,null,null,null,null,null,null,null,null,null,null,null,null,null,null,null,null,null,null,null,null,null,null,null,null,null,null,"1903-11-10"]
[null,null,null,null,null,null,null,null,null,null,null,null,null,null,null,null,null,null,null,null,null,null,null,null,null,null,null,null,null,null,null,null,"1903-12-10"]
[null,null,null,null,null,null,null,null,null,null,null,null,null,null,null,null,null,null,null,null,null,null,null,null,null,null,null,null,null,null,null,null,"1904-01-09"]
[null,null,null,null,null,null,null,null,null,null,null,null,null,null,null,null,null,null,null,null,null,null,null,null,null,null,null,null,null,null,null,null,"1904-02-08"]
[null,null,null,null,null,null,null,null,null,null,null,null,null,null,null,null,null,null,null,null,null,null,null,null,null,null,null,null,null,null,null,null,"1904-03-09"]
[null,null,null,null,null,null,null,null,null,null,null,null,null,null,null,null,null,null,null,null,null,null,null,null,null,null,null,null,null,null,null,null,"1904-04-08"]
[null,null,null,null,null,null,null,null,null,null,null,null,null,null,null,null,null,null,null,null,null,null,null,null,null,null,null,null,null,null,null,null,"1904-05-08"]
[null,null,null,null,null,null,null,null,null,null,null,null,null,null,null,null,null,null,null,null,null,null,null,null,null,null,null,null,null,null,null,null,"1904-06-07"]
[null,null,null,null,null,null,null,null,null,null,null,null,null,null,null,null,null,null,null,null,null,null,null,null,null,null,null,null,null,null,null,null,"1904-07-07"]
[null,null,null,null,null,null,null,null,null,null,null,null,null,null,null,null,null,null,null,null,null,null,null,null,null,null,null,null,null,null,null,null,"1904-08-06"]
[null,null,null,null,null,null,null,null,null,null,null,null,null,null,null,null,null,null,null,null,null,null,null,null,null,null,null,null,null,null,null,null,"1904-09-05"]
[null,null,null,null,null,null,null,null,null,null,null,null,null,null,null,null,null,null,null,null,null,null,null,null,null,null,null,null,null,null,null,null,"1904-10-05"]
[null,null,null,null,null,null,null,null,null,null,null,null,null,null,null,null,null,null,null,null,null,null,null,null,null,null,null,null,null,null,null,null,{"$f":"AG608+30","v":"1904-11-04"}]
[null,null,null,null,null,null,null,null,null,null,null,null,null,null,null,null,null,null,null,null,null,null,null,null,null,null,null,null,null,null,null,null,"1904-12-04"]
[null,null,null,null,null,null,null,null,null,null,null,null,null,null,null,null,null,null,null,null,null,null,null,null,null,null,null,null,null,null,null,null,"1905-01-03"]
[null,null,null,null,null,null,null,null,null,null,null,null,null,null,null,null,null,null,null,null,null,null,null,null,null,null,null,null,null,null,null,null,"1905-02-02"]
[null,null,null,null,null,null,null,null,null,null,null,null,null,null,null,null,null,null,null,null,null,null,null,null,null,null,null,null,null,null,null,null,"1905-03-04"]
[null,null,null,null,null,null,null,null,null,null,null,null,null,null,null,null,null,null,null,null,null,null,null,null,null,null,null,null,null,null,null,null,"1905-04-03"]
[null,null,null,null,null,null,null,null,null,null,null,null,null,null,null,null,null,null,null,null,null,null,null,null,null,null,null,null,null,null,null,null,"1905-05-03"]
[null,null,null,null,null,null,null,null,null,null,null,null,null,null,null,null,null,null,null,null,null,null,null,null,null,null,null,null,null,null,null,null,"1905-06-02"]
[null,null,null,null,null,null,null,null,null,null,null,null,null,null,null,null,null,null,null,null,null,null,null,null,null,null,null,null,null,null,null,null,"1905-07-02"]
[null,null,null,null,null,null,null,null,null,null,null,null,null,null,null,null,null,null,null,null,null,null,null,null,null,null,null,null,null,null,null,null,"1905-08-01"]
[null,null,null,null,null,null,null,null,null,null,null,null,null,null,null,null,null,null,null,null,null,null,null,null,null,null,null,null,null,null,null,null,"1905-08-31"]
[null,null,null,null,null,null,null,null,null,null,null,null,null,null,null,null,null,null,null,null,null,null,null,null,null,null,null,null,null,null,null,null,"1905-09-30"]
[null,null,null,null,null,null,null,null,null,null,null,null,null,null,null,null,null,null,null,null,null,null,null,null,null,null,null,null,null,null,null,null,"1905-10-30"]
[null,null,null,null,null,null,null,null,null,null,null,null,null,null,null,null,null,null,null,null,null,null,null,null,null,null,null,null,null,null,null,null,"1905-11-29"]
[null,null,null,null,null,null,null,null,null,null,null,null,null,null,null,null,null,null,null,null,null,null,null,null,null,null,null,null,null,null,null,null,"1905-12-29"]
[null,null,null,null,null,null,null,null,null,null,null,null,null,null,null,null,null,null,null,null,null,null,null,null,null,null,null,null,null,null,null,null,"1906-01-28"]
[null,null,null,null,null,null,null,null,null,null,null,null,null,null,null,null,null,null,null,null,null,null,null,null,null,null,null,null,null,null,null,null,"1906-02-27"]
[null,null,null,null,null,null,null,null,null,null,null,null,null,null,null,null,null,null,null,null,null,null,null,null,null,null,null,null,null,null,null,null,"1906-03-29"]
[null,null,null,null,null,null,null,null,null,null,null,null,null,null,null,null,null,null,null,null,null,null,null,null,null,null,null,null,null,null,null,null,"1906-04-28"]
[null,null,null,null,null,null,null,null,null,null,null,null,null,null,null,null,null,null,null,null,null,null,null,null,null,null,null,null,null,null,null,null,"1906-05-28"]
[null,null,null,null,null,null,null,null,null,null,null,null,null,null,null,null,null,null,null,null,null,null,null,null,null,null,null,null,null,null,null,null,"1906-06-27"]
[null,null,null,null,null,null,null,null,null,null,null,null,null,null,null,null,null,null,null,null,null,null,null,null,null,null,null,null,null,null,null,null,"1906-07-27"]
[null,null,null,null,null,null,null,null,null,null,null,null,null,null,null,null,null,null,null,null,null,null,null,null,null,null,null,null,null,null,null,null,"1906-08-26"]
[null,null,null,null,null,null,null,null,null,null,null,null,null,null,null,null,null,null,null,null,null,null,null,null,null,null,null,null,null,null,null,null,"1906-09-25"]
[null,null,null,null,null,null,null,null,null,null,null,null,null,null,null,null,null,null,null,null,null,null,null,null,null,null,null,null,null,null,null,null,"1906-10-25"]
[null,null,null,null,null,null,null,null,null,null,null,null,null,null,null,null,null,null,null,null,null,null,null,null,null,null,null,null,null,null,null,null,"1906-11-24"]
[null,null,null,null,null,null,null,null,null,null,null,null,null,null,null,null,null,null,null,null,null,null,null,null,null,null,null,null,null,null,null,null,"1906-12-24"]
[null,null,null,null,null,null,null,null,null,null,null,null,null,null,null,null,null,null,null,null,null,null,null,null,null,null,null,null,null,null,null,null,"1907-01-23"]
[null,null,null,null,null,null,null,null,null,null,null,null,null,null,null,null,null,null,null,null,null,null,null,null,null,null,null,null,null,null,null,null,"1907-02-22"]
[null,null,null,null,null,null,null,null,null,null,null,null,null,null,null,null,null,null,null,null,null,null,null,null,null,null,null,null,null,null,null,null,"1907-03-24"]
[null,null,null,null,null,null,null,null,null,null,null,null,null,null,null,null,null,null,null,null,null,null,null,null,null,null,null,null,null,null,null,null,"1907-04-23"]
[null,null,null,null,null,null,null,null,null,null,null,null,null,null,null,null,null,null,null,null,null,null,null,null,null,null,null,null,null,null,null,null,"1907-05-23"]
[null,null,null,null,null,null,null,null,null,null,null,null,null,null,null,null,null,null,null,null,null,null,null,null,null,null,null,null,null,null,null,null,"1907-06-22"]
[null,null,null,null,null,null,null,null,null,null,null,null,null,null,null,null,null,null,null,null,null,null,null,null,null,null,null,null,null,null,null,null,"1907-07-22"]
[null,null,null,null,null,null,null,null,null,null,null,null,null,null,null,null,null,null,null,null,null,null,null,null,null,null,null,null,null,null,null,null,"1907-08-21"]
[null,null,null,null,null,null,null,null,null,null,null,null,null,null,null,null,null,null,null,null,null,null,null,null,null,null,null,null,null,null,null,null,"1907-09-20"]
[null,null,null,null,null,null,null,null,null,null,null,null,null,null,null,null,null,null,null,null,null,null,null,null,null,null,null,null,null,null,null,null,"1907-10-20"]
[null,null,null,null,null,null,null,null,null,null,null,null,null,null,null,null,null,null,null,null,null,null,null,null,null,null,null,null,null,null,null,null,"1907-11-19"]
[null,null,null,null,null,null,null,null,null,null,null,null,null,null,null,null,null,null,null,null,null,null,null,null,null,null,null,null,null,null,null,null,"1907-12-19"]
[null,null,null,null,null,null,null,null,null,null,null,null,null,null,null,null,null,null,null,null,null,null,null,null,null,null,null,null,null,null,null,null,"1908-01-18"]
[null,null,null,null,null,null,null,null,null,null,null,null,null,null,null,null,null,null,null,null,null,null,null,null,null,null,null,null,null,null,null,null,"1908-02-17"]
[null,null,null,null,null,null,null,null,null,null,null,null,null,null,null,null,null,null,null,null,null,null,null,null,null,null,null,null,null,null,null,null,"1908-03-18"]
[null,null,null,null,null,null,null,null,null,null,null,null,null,null,null,null,null,null,null,null,null,null,null,null,null,null,null,null,null,null,null,null,"1908-04-17"]
[null,null,null,null,null,null,null,null,null,null,null,null,null,null,null,null,null,null,null,null,null,null,null,null,null,null,null,null,null,null,null,null,"1908-05-17"]
[null,null,null,null,null,null,null,null,null,null,null,null,null,null,null,null,null,null,null,null,null,null,null,null,null,null,null,null,null,null,null,null,"1908-06-16"]
[null,null,null,null,null,null,null,null,null,null,null,null,null,null,null,null,null,null,null,null,null,null,null,null,null,null,null,null,null,null,null,null,"1908-07-16"]
[null,null,null,null,null,null,null,null,null,null,null,null,null,null,null,null,null,null,null,null,null,null,null,null,null,null,null,null,null,null,null,null,"1908-08-15"]
[null,null,null,null,null,null,null,null,null,null,null,null,null,null,null,null,null,null,null,null,null,null,null,null,null,null,null,null,null,null,null,null,"1908-09-14"]
[null,null,null,null,null,null,null,null,null,null,null,null,null,null,null,null,null,null,null,null,null,null,null,null,null,null,null,null,null,null,null,null,"1908-10-14"]
[null,null,null,null,null,null,null,null,null,null,null,null,null,null,null,null,null,null,null,null,null,null,null,null,null,null,null,null,null,null,null,null,"1908-11-13"]
[null,null,null,null,null,null,null,null,null,null,null,null,null,null,null,null,null,null,null,null,null,null,null,null,null,null,null,null,null,null,null,null,"1908-12-13"]
[null,null,null,null,null,null,null,null,null,null,null,null,null,null,null,null,null,null,null,null,null,null,null,null,null,null,null,null,null,null,null,null,"1909-01-12"]
[null,null,null,null,null,null,null,null,null,null,null,null,null,null,null,null,null,null,null,null,null,null,null,null,null,null,null,null,null,null,null,null,"1909-02-11"]
[null,null,null,null,null,null,null,null,null,null,null,null,null,null,null,null,null,null,null,null,null,null,null,null,null,null,null,null,null,null,null,null,"1909-03-13"]
[null,null,null,null,null,null,null,null,null,null,null,null,null,null,null,null,null,null,null,null,null,null,null,null,null,null,null,null,null,null,null,null,"1909-04-12"]
[null,null,null,null,null,null,null,null,null,null,null,null,null,null,null,null,null,null,null,null,null,null,null,null,null,null,null,null,null,null,null,null,"1909-05-12"]
[null,null,null,null,null,null,null,null,null,null,null,null,null,null,null,null,null,null,null,null,null,null,null,null,null,null,null,null,null,null,null,null,"1909-06-11"]
[null,null,null,null,null,null,null,null,null,null,null,null,null,null,null,null,null,null,null,null,null,null,null,null,null,null,null,null,null,null,null,null,"1909-07-11"]
[null,null,null,null,null,null,null,null,null,null,null,null,null,null,null,null,null,null,null,null,null,null,null,null,null,null,null,null,null,null,null,null,"1909-08-10"]
[null,null,null,null,null,null,null,null,null,null,null,null,null,null,null,null,null,null,null,null,null,null,null,null,null,null,null,null,null,null,null,null,"1909-09-09"]
[null,null,null,null,null,null,null,null,null,null,null,null,null,null,null,null,null,null,null,null,null,null,null,null,null,null,null,null,null,null,null,null,"1909-10-09"]
[null,null,null,null,null,null,null,null,null,null,null,null,null,null,null,null,null,null,null,null,null,null,null,null,null,null,null,null,null,null,null,null,"1909-11-08"]
[null,null,null,null,null,null,null,null,null,null,null,null,null,null,null,null,null,null,null,null,null,null,null,null,null,null,null,null,null,null,null,null,"1909-12-08"]
[null,null,null,null,null,null,null,null,null,null,null,null,null,null,null,null,null,null,null,null,null,null,null,null,null,null,null,null,null,null,null,null,"1910-01-07"]
[null,null,null,null,null,null,null,null,null,null,null,null,null,null,null,null,null,null,null,null,null,null,null,null,null,null,null,null,null,null,null,null,{"$f":"AG672+30","v":"1910-02-06"}]
[null,null,null,null,null,null,null,null,null,null,null,null,null,null,null,null,null,null,null,null,null,null,null,null,null,null,null,null,null,null,null,null,"1910-03-08"]
[null,null,null,null,null,null,null,null,null,null,null,null,null,null,null,null,null,null,null,null,null,null,null,null,null,null,null,null,null,null,null,null,"1910-04-07"]
[null,null,null,null,null,null,null,null,null,null,null,null,null,null,null,null,null,null,null,null,null,null,null,null,null,null,null,null,null,null,null,null,"1910-05-07"]
[null,null,null,null,null,null,null,null,null,null,null,null,null,null,null,null,null,null,null,null,null,null,null,null,null,null,null,null,null,null,null,null,"1910-06-06"]
[null,null,null,null,null,null,null,null,null,null,null,null,null,null,null,null,null,null,null,null,null,null,null,null,null,null,null,null,null,null,null,null,"1910-07-06"]
[null,null,null,null,null,null,null,null,null,null,null,null,null,null,null,null,null,null,null,null,null,null,null,null,null,null,null,null,null,null,null,null,"1910-08-05"]
[null,null,null,null,null,null,null,null,null,null,null,null,null,null,null,null,null,null,null,null,null,null,null,null,null,null,null,null,null,null,null,null,"1910-09-04"]
[null,null,null,null,null,null,null,null,null,null,null,null,null,null,null,null,null,null,null,null,null,null,null,null,null,null,null,null,null,null,null,null,"1910-10-04"]
[null,null,null,null,null,null,null,null,null,null,null,null,null,null,null,null,null,null,null,null,null,null,null,null,null,null,null,null,null,null,null,null,"1910-11-03"]
[null,null,null,null,null,null,null,null,null,null,null,null,null,null,null,null,null,null,null,null,null,null,null,null,null,null,null,null,null,null,null,null,"1910-12-03"]
[null,null,null,null,null,null,null,null,null,null,null,null,null,null,null,null,null,null,null,null,null,null,null,null,null,null,null,null,null,null,null,null,"1911-01-02"]
[null,null,null,null,null,null,null,null,null,null,null,null,null,null,null,null,null,null,null,null,null,null,null,null,null,null,null,null,null,null,null,null,"1911-02-01"]
[null,null,null,null,null,null,null,null,null,null,null,null,null,null,null,null,null,null,null,null,null,null,null,null,null,null,null,null,null,null,null,null,"1911-03-03"]
[null,null,null,null,null,null,null,null,null,null,null,null,null,null,null,null,null,null,null,null,null,null,null,null,null,null,null,null,null,null,null,null,"1911-04-02"]
[null,null,null,null,null,null,null,null,null,null,null,null,null,null,null,null,null,null,null,null,null,null,null,null,null,null,null,null,null,null,null,null,"1911-05-02"]
[null,null,null,null,null,null,null,null,null,null,null,null,null,null,null,null,null,null,null,null,null,null,null,null,null,null,null,null,null,null,null,null,"1911-06-01"]
[null,null,null,null,null,null,null,null,null,null,null,null,null,null,null,null,null,null,null,null,null,null,null,null,null,null,null,null,null,null,null,null,"1911-07-01"]
[null,null,null,null,null,null,null,null,null,null,null,null,null,null,null,null,null,null,null,null,null,null,null,null,null,null,null,null,null,null,null,null,"1911-07-31"]
[null,null,null,null,null,null,null,null,null,null,null,null,null,null,null,null,null,null,null,null,null,null,null,null,null,null,null,null,null,null,null,null,"1911-08-30"]
[null,null,null,null,null,null,null,null,null,null,null,null,null,null,null,null,null,null,null,null,null,null,null,null,null,null,null,null,null,null,null,null,"1911-09-29"]
[null,null,null,null,null,null,null,null,null,null,null,null,null,null,null,null,null,null,null,null,null,null,null,null,null,null,null,null,null,null,null,null,"1911-10-29"]
[null,null,null,null,null,null,null,null,null,null,null,null,null,null,null,null,null,null,null,null,null,null,null,null,null,null,null,null,null,null,null,null,"1911-11-28"]
[null,null,null,null,null,null,null,null,null,null,null,null,null,null,null,null,null,null,null,null,null,null,null,null,null,null,null,null,null,null,null,null,"1911-12-28"]
[null,null,null,null,null,null,null,null,null,null,null,null,null,null,null,null,null,null,null,null,null,null,null,null,null,null,null,null,null,null,null,null,"1912-01-27"]
[null,null,null,null,null,null,null,null,null,null,null,null,null,null,null,null,null,null,null,null,null,null,null,null,null,null,null,null,null,null,null,null,"1912-02-26"]
[null,null,null,null,null,null,null,null,null,null,null,null,null,null,null,null,null,null,null,null,null,null,null,null,null,null,null,null,null,null,null,null,"1912-03-27"]
[null,null,null,null,null,null,null,null,null,null,null,null,null,null,null,null,null,null,null,null,null,null,null,null,null,null,null,null,null,null,null,null,"1912-04-26"]
[null,null,null,null,null,null,null,null,null,null,null,null,null,null,null,null,null,null,null,null,null,null,null,null,null,null,null,null,null,null,null,null,"1912-05-26"]
[null,null,null,null,null,null,null,null,null,null,null,null,null,null,null,null,null,null,null,null,null,null,null,null,null,null,null,null,null,null,null,null,"1912-06-25"]
[null,null,null,null,null,null,null,null,null,null,null,null,null,null,null,null,null,null,null,null,null,null,null,null,null,null,null,null,null,null,null,null,"1912-07-25"]
[null,null,null,null,null,null,null,null,null,null,null,null,null,null,null,null,null,null,null,null,null,null,null,null,null,null,null,null,null,null,null,null,"1912-08-24"]
[null,null,null,null,null,null,null,null,null,null,null,null,null,null,null,null,null,null,null,null,null,null,null,null,null,null,null,null,null,null,null,null,"1912-09-23"]
[null,null,null,null,null,null,null,null,null,null,null,null,null,null,null,null,null,null,null,null,null,null,null,null,null,null,null,null,null,null,null,null,"1912-10-23"]
[null,null,null,null,null,null,null,null,null,null,null,null,null,null,null,null,null,null,null,null,null,null,null,null,null,null,null,null,null,null,null,null,"1912-11-22"]
[null,null,null,null,null,null,null,null,null,null,null,null,null,null,null,null,null,null,null,null,null,null,null,null,null,null,null,null,null,null,null,null,"1912-12-22"]
[null,null,null,null,null,null,null,null,null,null,null,null,null,null,null,null,null,null,null,null,null,null,null,null,null,null,null,null,null,null,null,null,"1913-01-21"]
[null,null,null,null,null,null,null,null,null,null,null,null,null,null,null,null,null,null,null,null,null,null,null,null,null,null,null,null,null,null,null,null,"1913-02-20"]
[null,null,null,null,null,null,null,null,null,null,null,null,null,null,null,null,null,null,null,null,null,null,null,null,null,null,null,null,null,null,null,null,"1913-03-22"]
[null,null,null,null,null,null,null,null,null,null,null,null,null,null,null,null,null,null,null,null,null,null,null,null,null,null,null,null,null,null,null,null,"1913-04-21"]
[null,null,null,null,null,null,null,null,null,null,null,null,null,null,null,null,null,null,null,null,null,null,null,null,null,null,null,null,null,null,null,null,"1913-05-21"]
[null,null,null,null,null,null,null,null,null,null,null,null,null,null,null,null,null,null,null,null,null,null,null,null,null,null,null,null,null,null,null,null,"1913-06-20"]
[null,null,null,null,null,null,null,null,null,null,null,null,null,null,null,null,null,null,null,null,null,null,null,null,null,null,null,null,null,null,null,null,"1913-07-20"]
[null,null,null,null,null,null,null,null,null,null,null,null,null,null,null,null,null,null,null,null,null,null,null,null,null,null,null,null,null,null,null,null,"1913-08-19"]
[null,null,null,null,null,null,null,null,null,null,null,null,null,null,null,null,null,null,null,null,null,null,null,null,null,null,null,null,null,null,null,null,"1913-09-18"]
[null,null,null,null,null,null,null,null,null,null,null,null,null,null,null,null,null,null,null,null,null,null,null,null,null,null,null,null,null,null,null,null,"1913-10-18"]
[null,null,null,null,null,null,null,null,null,null,null,null,null,null,null,null,null,null,null,null,null,null,null,null,null,null,null,null,null,null,null,null,"1913-11-17"]
[null,null,null,null,null,null,null,null,null,null,null,null,null,null,null,null,null,null,null,null,null,null,null,null,null,null,null,null,null,null,null,null,"1913-12-17"]
[null,null,null,null,null,null,null,null,null,null,null,null,null,null,null,null,null,null,null,null,null,null,null,null,null,null,null,null,null,null,null,null,"1914-01-16"]
[null,null,null,null,null,null,null,null,null,null,null,null,null,null,null,null,null,null,null,null,null,null,null,null,null,null,null,null,null,null,null,null,"1914-02-15"]
[null,null,null,null,null,null,null,null,null,null,null,null,null,null,null,null,null,null,null,null,null,null,null,null,null,null,null,null,null,null,null,null,"1914-03-17"]
[null,null,null,null,null,null,null,null,null,null,null,null,null,null,null,null,null,null,null,null,null,null,null,null,null,null,null,null,null,null,null,null,"1914-04-16"]
[null,null,null,null,null,null,null,null,null,null,null,null,null,null,null,null,null,null,null,null,null,null,null,null,null,null,null,null,null,null,null,null,"1914-05-16"]
[null,null,null,null,null,null,null,null,null,null,null,null,null,null,null,null,null,null,null,null,null,null,null,null,null,null,null,null,null,null,null,null,"1914-06-15"]
[null,null,null,null,null,null,null,null,null,null,null,null,null,null,null,null,null,null,null,null,null,null,null,null,null,null,null,null,null,null,null,null,"1914-07-15"]
[null,null,null,null,null,null,null,null,null,null,null,null,null,null,null,null,null,null,null,null,null,null,null,null,null,null,null,null,null,null,null,null,"1914-08-14"]
[null,null,null,null,null,null,null,null,null,null,null,null,null,null,null,null,null,null,null,null,null,null,null,null,null,null,null,null,null,null,null,null,"1914-09-13"]
[null,null,null,null,null,null,null,null,null,null,null,null,null,null,null,null,null,null,null,null,null,null,null,null,null,null,null,null,null,null,null,null,"1914-10-13"]
[null,null,null,null,null,null,null,null,null,null,null,null,null,null,null,null,null,null,null,null,null,null,null,null,null,null,null,null,null,null,null,null,"1914-11-12"]
[null,null,null,null,null,null,null,null,null,null,null,null,null,null,null,null,null,null,null,null,null,null,null,null,null,null,null,null,null,null,null,null,"1914-12-12"]
[null,null,null,null,null,null,null,null,null,null,null,null,null,null,null,null,null,null,null,null,null,null,null,null,null,null,null,null,null,null,null,null,"1915-01-11"]
[null,null,null,null,null,null,null,null,null,null,null,null,null,null,null,null,null,null,null,null,null,null,null,null,null,null,null,null,null,null,null,null,"1915-02-10"]
[null,null,null,null,null,null,null,null,null,null,null,null,null,null,null,null,null,null,null,null,null,null,null,null,null,null,null,null,null,null,null,null,"1915-03-12"]
[null,null,null,null,null,null,null,null,null,null,null,null,null,null,null,null,null,null,null,null,null,null,null,null,null,null,null,null,null,null,null,null,"1915-04-11"]
[null,null,null,null,null,null,null,null,null,null,null,null,null,null,null,null,null,null,null,null,null,null,null,null,null,null,null,null,null,null,null,null,{"$f":"AG736+30","v":"1915-05-11"}]
[null,null,null,null,null,null,null,null,null,null,null,null,null,null,null,null,null,null,null,null,null,null,null,null,null,null,null,null,null,null,null,null,"1915-06-10"]
[null,null,null,null,null,null,null,null,null,null,null,null,null,null,null,null,null,null,null,null,null,null,null,null,null,null,null,null,null,null,null,null,"1915-07-10"]
[null,null,null,null,null,null,null,null,null,null,null,null,null,null,null,null,null,null,null,null,null,null,null,null,null,null,null,null,null,null,null,null,"1915-08-09"]
[null,null,null,null,null,null,null,null,null,null,null,null,null,null,null,null,null,null,null,null,null,null,null,null,null,null,null,null,null,null,null,null,"1915-09-08"]
[null,null,null,null,null,null,null,null,null,null,null,null,null,null,null,null,null,null,null,null,null,null,null,null,null,null,null,null,null,null,null,null,"1915-10-08"]
[null,null,null,null,null,null,null,null,null,null,null,null,null,null,null,null,null,null,null,null,null,null,null,null,null,null,null,null,null,null,null,null,"1915-11-07"]
[null,null,null,null,null,null,null,null,null,null,null,null,null,null,null,null,null,null,null,null,null,null,null,null,null,null,null,null,null,null,null,null,"1915-12-07"]
[null,null,null,null,null,null,null,null,null,null,null,null,null,null,null,null,null,null,null,null,null,null,null,null,null,null,null,null,null,null,null,null,"1916-01-06"]
[null,null,null,null,null,null,null,null,null,null,null,null,null,null,null,null,null,null,null,null,null,null,null,null,null,null,null,null,null,null,null,null,"1916-02-05"]
[null,null,null,null,null,null,null,null,null,null,null,null,null,null,null,null,null,null,null,null,null,null,null,null,null,null,null,null,null,null,null,null,"1916-03-06"]
[null,null,null,null,null,null,null,null,null,null,null,null,null,null,null,null,null,null,null,null,null,null,null,null,null,null,null,null,null,null,null,null,"1916-04-05"]
[null,null,null,null,null,null,null,null,null,null,null,null,null,null,null,null,null,null,null,null,null,null,null,null,null,null,null,null,null,null,null,null,"1916-05-05"]
[null,null,null,null,null,null,null,null,null,null,null,null,null,null,null,null,null,null,null,null,null,null,null,null,null,null,null,null,null,null,null,null,"1916-06-04"]
[null,null,null,null,null,null,null,null,null,null,null,null,null,null,null,null,null,null,null,null,null,null,null,null,null,null,null,null,null,null,null,null,"1916-07-04"]
[null,null,null,null,null,null,null,null,null,null,null,null,null,null,null,null,null,null,null,null,null,null,null,null,null,null,null,null,null,null,null,null,"1916-08-03"]
[null,null,null,null,null,null,null,null,null,null,null,null,null,null,null,null,null,null,null,null,null,null,null,null,null,null,null,null,null,null,null,null,"1916-09-02"]
[null,null,null,null,null,null,null,null,null,null,null,null,null,null,null,null,null,null,null,null,null,null,null,null,null,null,null,null,null,null,null,null,"1916-10-02"]
[null,null,null,null,null,null,null,null,null,null,null,null,null,null,null,null,null,null,null,null,null,null,null,null,null,null,null,null,null,null,null,null,"1916-11-01"]
[null,null,null,null,null,null,null,null,null,null,null,null,null,null,null,null,null,null,null,null,null,null,null,null,null,null,null,null,null,null,null,null,"1916-12-01"]
[null,null,null,null,null,null,null,null,null,null,null,null,null,null,null,null,null,null,null,null,null,null,null,null,null,null,null,null,null,null,null,null,"1916-12-31"]
[null,null,null,null,null,null,null,null,null,null,null,null,null,null,null,null,null,null,null,null,null,null,null,null,null,null,null,null,null,null,null,null,"1917-01-30"]
[null,null,null,null,null,null,null,null,null,null,null,null,null,null,null,null,null,null,null,null,null,null,null,null,null,null,null,null,null,null,null,null,"1917-03-01"]
[null,null,null,null,null,null,null,null,null,null,null,null,null,null,null,null,null,null,null,null,null,null,null,null,null,null,null,null,null,null,null,null,"1917-03-31"]
[null,null,null,null,null,null,null,null,null,null,null,null,null,null,null,null,null,null,null,null,null,null,null,null,null,null,null,null,null,null,null,null,"1917-04-30"]
[null,null,null,null,null,null,null,null,null,null,null,null,null,null,null,null,null,null,null,null,null,null,null,null,null,null,null,null,null,null,null,null,"1917-05-30"]
[null,null,null,null,null,null,null,null,null,null,null,null,null,null,null,null,null,null,null,null,null,null,null,null,null,null,null,null,null,null,null,null,"1917-06-29"]
[null,null,null,null,null,null,null,null,null,null,null,null,null,null,null,null,null,null,null,null,null,null,null,null,null,null,null,null,null,null,null,null,"1917-07-29"]
[null,null,null,null,null,null,null,null,null,null,null,null,null,null,null,null,null,null,null,null,null,null,null,null,null,null,null,null,null,null,null,null,"1917-08-28"]
[null,null,null,null,null,null,null,null,null,null,null,null,null,null,null,null,null,null,null,null,null,null,null,null,null,null,null,null,null,null,null,null,"1917-09-27"]
[null,null,null,null,null,null,null,null,null,null,null,null,null,null,null,null,null,null,null,null,null,null,null,null,null,null,null,null,null,null,null,null,"1917-10-27"]
[null,null,null,null,null,null,null,null,null,null,null,null,null,null,null,null,null,null,null,null,null,null,null,null,null,null,null,null,null,null,null,null,"1917-11-26"]
[null,null,null,null,null,null,null,null,null,null,null,null,null,null,null,null,null,null,null,null,null,null,null,null,null,null,null,null,null,null,null,null,"1917-12-26"]
[null,null,null,null,null,null,null,null,null,null,null,null,null,null,null,null,null,null,null,null,null,null,null,null,null,null,null,null,null,null,null,null,"1918-01-25"]
[null,null,null,null,null,null,null,null,null,null,null,null,null,null,null,null,null,null,null,null,null,null,null,null,null,null,null,null,null,null,null,null,"1918-02-24"]
[null,null,null,null,null,null,null,null,null,null,null,null,null,null,null,null,null,null,null,null,null,null,null,null,null,null,null,null,null,null,null,null,"1918-03-26"]
[null,null,null,null,null,null,null,null,null,null,null,null,null,null,null,null,null,null,null,null,null,null,null,null,null,null,null,null,null,null,null,null,"1918-04-25"]
[null,null,null,null,null,null,null,null,null,null,null,null,null,null,null,null,null,null,null,null,null,null,null,null,null,null,null,null,null,null,null,null,"1918-05-25"]
[null,null,null,null,null,null,null,null,null,null,null,null,null,null,null,null,null,null,null,null,null,null,null,null,null,null,null,null,null,null,null,null,"1918-06-24"]
[null,null,null,null,null,null,null,null,null,null,null,null,null,null,null,null,null,null,null,null,null,null,null,null,null,null,null,null,null,null,null,null,"1918-07-24"]
[null,null,null,null,null,null,null,null,null,null,null,null,null,null,null,null,null,null,null,null,null,null,null,null,null,null,null,null,null,null,null,null,"1918-08-23"]
[null,null,null,null,null,null,null,null,null,null,null,null,null,null,null,null,null,null,null,null,null,null,null,null,null,null,null,null,null,null,null,null,"1918-09-22"]
[null,null,null,null,null,null,null,null,null,null,null,null,null,null,null,null,null,null,null,null,null,null,null,null,null,null,null,null,null,null,null,null,"1918-10-22"]
[null,null,null,null,null,null,null,null,null,null,null,null,null,null,null,null,null,null,null,null,null,null,null,null,null,null,null,null,null,null,null,null,"1918-11-21"]
[null,null,null,null,null,null,null,null,null,null,null,null,null,null,null,null,null,null,null,null,null,null,null,null,null,null,null,null,null,null,null,null,"1918-12-21"]
[null,null,null,null,null,null,null,null,null,null,null,null,null,null,null,null,null,null,null,null,null,null,null,null,null,null,null,null,null,null,null,null,"1919-01-20"]
[null,null,null,null,null,null,null,null,null,null,null,null,null,null,null,null,null,null,null,null,null,null,null,null,null,null,null,null,null,null,null,null,"1919-02-19"]
[null,null,null,null,null,null,null,null,null,null,null,null,null,null,null,null,null,null,null,null,null,null,null,null,null,null,null,null,null,null,null,null,"1919-03-21"]
[null,null,null,null,null,null,null,null,null,null,null,null,null,null,null,null,null,null,null,null,null,null,null,null,null,null,null,null,null,null,null,null,"1919-04-20"]
[null,null,null,null,null,null,null,null,null,null,null,null,null,null,null,null,null,null,null,null,null,null,null,null,null,null,null,null,null,null,null,null,"1919-05-20"]
[null,null,null,null,null,null,null,null,null,null,null,null,null,null,null,null,null,null,null,null,null,null,null,null,null,null,null,null,null,null,null,null,"1919-06-19"]
[null,null,null,null,null,null,null,null,null,null,null,null,null,null,null,null,null,null,null,null,null,null,null,null,null,null,null,null,null,null,null,null,"1919-07-19"]
[null,null,null,null,null,null,null,null,null,null,null,null,null,null,null,null,null,null,null,null,null,null,null,null,null,null,null,null,null,null,null,null,"1919-08-18"]
[null,null,null,null,null,null,null,null,null,null,null,null,null,null,null,null,null,null,null,null,null,null,null,null,null,null,null,null,null,null,null,null,"1919-09-17"]
[null,null,null,null,null,null,null,null,null,null,null,null,null,null,null,null,null,null,null,null,null,null,null,null,null,null,null,null,null,null,null,null,"1919-10-17"]
[null,null,null,null,null,null,null,null,null,null,null,null,null,null,null,null,null,null,null,null,null,null,null,null,null,null,null,null,null,null,null,null,"1919-11-16"]
[null,null,null,null,null,null,null,null,null,null,null,null,null,null,null,null,null,null,null,null,null,null,null,null,null,null,null,null,null,null,null,null,"1919-12-16"]
[null,null,null,null,null,null,null,null,null,null,null,null,null,null,null,null,null,null,null,null,null,null,null,null,null,null,null,null,null,null,null,null,"1920-01-15"]
[null,null,null,null,null,null,null,null,null,null,null,null,null,null,null,null,null,null,null,null,null,null,null,null,null,null,null,null,null,null,null,null,"1920-02-14"]
[null,null,null,null,null,null,null,null,null,null,null,null,null,null,null,null,null,null,null,null,null,null,null,null,null,null,null,null,null,null,null,null,"1920-03-15"]
[null,null,null,null,null,null,null,null,null,null,null,null,null,null,null,null,null,null,null,null,null,null,null,null,null,null,null,null,null,null,null,null,"1920-04-14"]
[null,null,null,null,null,null,null,null,null,null,null,null,null,null,null,null,null,null,null,null,null,null,null,null,null,null,null,null,null,null,null,null,"1920-05-14"]
[null,null,null,null,null,null,null,null,null,null,null,null,null,null,null,null,null,null,null,null,null,null,null,null,null,null,null,null,null,null,null,null,"1920-06-13"]
[null,null,null,null,null,null,null,null,null,null,null,null,null,null,null,null,null,null,null,null,null,null,null,null,null,null,null,null,null,null,null,null,"1920-07-13"]
[null,null,null,null,null,null,null,null,null,null,null,null,null,null,null,null,null,null,null,null,null,null,null,null,null,null,null,null,null,null,null,null,{"$f":"AG800+30","v":"1920-08-12"}]
[null,null,null,null,null,null,null,null,null,null,null,null,null,null,null,null,null,null,null,null,null,null,null,null,null,null,null,null,null,null,null,null,{"$f":"AG801+30","v":"1920-09-11"}]
[null,null,null,null,null,null,null,null,null,null,null,null,null,null,null,null,null,null,null,null,null,null,null,null,null,null,null,null,null,null,null,null,{"$f":"AG802+30","v":"1920-10-11"}]
[null,null,null,null,null,null,null,null,null,null,null,null,null,null,null,null,null,null,null,null,null,null,null,null,null,null,null,null,null,null,null,null,{"$f":"AG803+30","v":"1920-11-10"}]

{"sheet":"FACTORES","index":1,"n_rows":1243,"n_cols":37,"rows_kept":1243,"cut":false,"hidden":false,"merged":[[2,28,2,29]]}
["FERIADOS",null,"DESGRAVAMEN",null,null,"DESGRAVAMEN",null,null,null,null,null,"MICROSEGURO",null,null,null,"MICROSEGURO",null,null,null,"MICROSEGURO",null,null,null,"MICROSEGURO"]
[null,null,null,null,null,null,null,null,null,null,null,"NEGOCIO PROTEGIDO",null,null,null,"PROTECCION FINANCIERA",null,null,null,"NEGOCIO PROTEGIDO",null,null,null,"ONCORESPALDO"]
["FECHA","DESCRIPCION","TASA HIPOTECARIA",null,null,"PLAZO 0 ","PLAZO 1","TASA",null,null,null,"PLAZO 0 ","PLAZO 1","TASA",null,"PLAZO 0 ","PLAZO 1","TASA",null,"PLAZO 0 ","PLAZO 1","TASA",null,"PLAN","PRIMA TITULAR","PRIMA AFILIADOS",null,null,"Duración del crédito (en meses)",null,"Tasa por ciento Retorno",null,null,"monto préstamo",null,"prima individual","prima Familiar"]
["1998-01-01","AÑO NUEVO",4.3478000000000001E-4,1.25,null,6,0,4.7999999999999996E-3,null,null,null,0,1000,1.58E-3,null,0,6,2.2550000000000001E-2,null,0,5000,4.0000000000000001E-3,null,0,5,5,"nuevo",null,25,30,1.7901299999999998E-2,null,null,"< 5,000",0,5,5.5]
["1998-04-09","JUEVES SANTO",null,{"$f":"MAX($I$4:$I$23)","v":0},null,12,6.0000010000000001,8.1151999999999995E-3,null,null,null,1000.001,3000,1.0399999999999999E-3,null,7,12,2.2550000000000001E-2,null,5000.01,10000,1.289E-3,null,5000,7,7,"nuevo",null,31,36,2.1301E-2,null,null,">=5,000 y <20,000",5000,7,12]
["1998-04-10","VIERNES SANTO",null,{"$f":"MIN($I$4:$I$23)","v":0},null,18,12.000000999999999,1.091465E-2,null,null,null,null,null,null,null,13,18,2.2550000000000001E-2,null,10000.01,24000,9.3800000000000003E-4,null,20000,9,9,"nuevo",null,37,42,2.4211400000000001E-2,null,null,">=20,000 y <50,000",20000,9,18]
["1998-05-01","DIA DEL TRABAJO",null,null,null,24,18.000001000000001,1.4252529999999999E-2,null,null,null,null,null,null,null,19,24,2.3650000000000001E-2,null,24000.01,150000,9.3800000000000003E-4,null,50000,14,14,"nuevo",null,43,48,2.7489599999999999E-2,null,null,">=50,000",50000,14,18]
["1998-06-29","SAN PEDRO Y SAN PABLO",null,null,null,30,24.000001000000001,1.7512300000000001E-2,null,null,null,null,null,null,null,25,30,2.3300000000000001E-2,null,150000.01,200000,7.7399999999999995E-4,null,null,null,null,null,null,49,54,3.0749499999999999E-2]
["1998-07-28","FIESTAS PATRIAS",null,null,null,36,30.000001000000001,2.1257849999999998E-2,null,null,null,null,null,null,null,31,36,2.5600000000000001E-2,null,200000.01,21000000,7.7399999999999995E-4,null,"Combo",2.9,"no aplica","nuevo",null,55,60,3.3831800000000002E-2]
["1998-07-29","FIESTAS PATRIAS",null,null,null,42,36.000000999999997,2.41467E-2,null,null,null,null,null,null,null,37,42,2.7699999999999999E-2,null,2100000000.01,1000000000000,7.7399999999999995E-4,null,null,4.5,4.5,"ANTIGUO PLAN",null,61,66,3.7029199999999998E-2,null,null,{"$f":"VLOOKUP(Cronograma!G6,AI3:AK7,2)","v":9},"indiv"]
["1998-08-30","SANTA ROSA DE LIMA",null,null,null,48,42.000000999999997,2.789438E-2,null,null,"ITF",{"$f":"Cronograma!O14","v":1.7},null,null,null,43,48,3.1899999999999998E-2,null,null,null,null,null,null,21.9,7,"ANTIGUO PLAN",null,67,72,4.0231099999999999E-2,null,null,{"$f":"VLOOKUP(Cronograma!G6,AI3:AK7,3)","v":18},"familiar"]
["1998-10-08","COMBATE DE ANGAMOS",null,null,null,54,48.000000999999997,3.2433089999999998E-2,null,null,"Monto Neto",{"$f":"Cronograma!G6","v":34000},null,null,null,49,54,3.4599999999999999E-2,null,null,null,null,null,null,null,null,null,null,73,78,4.3387700000000001E-2]
["1998-11-01","DIA DE LOS DIFUNTOS",null,null,null,60,54.000000999999997,3.2433089999999998E-2,null,null,"Desgravamen",{"$f":"IF(Cronograma!M16=\"No\",0,IF(Cronograma!$M$16=\"Si, Tradicional\",Cronograma!CE31,Cronograma!CF31))","v":4.7999999999999996E-3},{"$f":"Cronograma!M16","v":"Si, Tradicional"},null,null,55,60,3.8699999999999998E-2,null,null,null,null,null,null,null,null,null,null,79,84,4.6551599999999999E-2]
["1998-12-08","DIA INMACULADA CONCEPCION",null,null,null,66,60.000000999999997,3.9602789999999999E-2,null,null,null,{"$f":"IF(L12=\"\",0,VLOOKUP(L12,$T$4:$V$11,3))","v":9.3800000000000003E-4},null,null,null,61,66,4.1000000000000002E-2,null,null,null,null,null,null,null,null,null,null,85,90,4.9699800000000002E-2]
["1998-12-24","NAVIDAD",null,null,null,72,66.000000999999997,3.9602789999999999E-2,null,null,"Plazo",{"$f":"Cronograma!G10","v":3},null,null,null,67,72,4.1399999999999999E-2,null,null,null,null,null,null,null,null,null,null,91,96,5.2845400000000001E-2]
["1998-12-25","NAVIDAD",null,null,null,78,72.000000999999997,4.5702449999999999E-2,null,"A","Negoc. Protegido",{"$f":"L12*L14*L15","v":95.676000000000002},false,{"$f":"L16","v":95.676000000000002},null,73,78,4.24E-2,null,null,null,null,null,null,null,null,null,null,97,120,6.5217300000000006E-2]
["1999-01-01","AÑO NUEVO",null,null,null,84,78.000000999999997,4.5702449999999999E-2,null,null,null,null,null,null,null,79,84,4.24E-2,null,null,null,null,null,null,null,null,null,null,121,144,7.7304499999999998E-2]
["1999-04-01","JUEVES SANTO",null,null,null,90,84.000000999999997,5.1733099999999997E-2,null,null,null,null,null,null,null,85,90,4.3400000000000001E-2,null,null,null,null,null,null,null,null,null,null,145,168,8.8991299999999995E-2]
["1999-04-02","VIERNES SANTO",null,null,null,96,90.000000999999997,5.1733099999999997E-2,null,null,"Prima Mensual",{"$f":"VLOOKUP(Cronograma!G6,AI3:AK7,2)","v":9},null,null,null,91,96,4.6300000000000001E-2,null,null,null,null,null,null,null,null,null,null,169,180,9.4575699999999999E-2]
["1999-05-01","DIA DEL TRABAJO",null,null,null,120,96.000000999999997,6.3593549999999999E-2,null,"B","Familia Protegida",{"$f":"L15*L19*(Cronograma!CH23-1)","v":27},false,{"$f":"L20","v":27},null,97,102,4.9299999999999997E-2]
["1999-06-29","SAN PEDRO Y SAN PABLO",null,null,null,144,120.000001,7.5193410000000002E-2,null,null,null,null,null,null,null,103,108,5.2200000000000003E-2]
["1999-07-28","FIESTAS PATRIAS",null,null,null,168,144.000001,8.6541950000000006E-2,null,null,null,null,null,null,null,109,114,5.5199999999999999E-2]
["1999-07-29","FIESTAS PATRIAS",null,null,null,180,168.000001,9.212352E-2,null,null,"Accidente",{"$f":"VLOOKUP(Cronograma!G6,AI3:AK7,3)","v":18},null,null,null,115,120,5.8200000000000002E-2]
["1999-08-30","SANTA ROSA DE LIMA",null,null,null,190,180.000001,9.2999999999999999E-2,null,"D","Familia Protegida",{"$f":"L15*L23","v":54},false,{"$f":"L24","v":54}]
["1999-10-08","COMBATE DE ANGAMOS",null,null,null,196,190.000001,0.1]
["1999-11-01","DIA DE LOS DIFUNTOS",null,null,null,216,196.000001,0.106]
["1999-12-08","DIA INMACULADA CONCEPCION",null,null,null,228,216.000001,0.111,null,null,"PLAN",{"$f":"Cronograma!G6","v":34000}]
["1999-12-25","NAVIDAD",null,null,null,240,228.000001,0.11700000000000001,null,null,"Afiliados además del titular",{"$f":"Cronograma!U21","v":0},null,null,false]
["2000-01-01","AÑO NUEVO",null,null,null,240,240,0.11700000000000001,null,"E","OncoRespaldo",{"$f":"IF(L27<20000,O32,(VLOOKUP(L27,$X$4:$Z$7,2)+L28*VLOOKUP(L27,$X$4:$Z$7,3))*L15)","v":27},false,{"$f":"Cronograma!V21","v":0},{"$f":"COUNTIF(M16:M33,TRUE)","v":0}]
["2000-04-20","JUEVES SANTO",null,null,null,null,null,null,null,null,null,null,null,null,true]
["2000-04-21","VIERNES SANTO",null,null,null,null,null,null,null,null,null,null,null,null,false]
["2000-05-01","DIA DEL TRABAJO",null,null,null,null,null,null,null,null,null,{"$f":"IF(L15=\"\",0,VLOOKUP(L15,$P$1:$R$72,3,1))","v":2.2550000000000001E-2},null,null,27]
["2000-06-29","SAN PEDRO Y SAN PABLO",null,null,null,null,null,null,null,"C","Protec. Financiera",{"$f":"ROUND((L11+L12+L36)*L32/(1-L32-L13),2)","v":788.3},false]
["2000-07-28","FIESTAS PATRIAS"]
["2000-07-29","FIESTAS PATRIAS"]
["2000-08-30","SANTA ROSA DE LIMA",null,null,null,null,null,null,null,null,null,{"$f":"SUMIF(M16:M29,L37,N16:N29)+Cronograma!V15","v":0}]
["2000-10-08","COMBATE DE ANGAMOS",null,null,null,null,null,null,null,null,null,true]
["2000-11-01","DIA DE LOS DIFUNTOS"]
["2000-12-08","DIA INMACULADA CONCEPCION"]
["2000-12-25","NAVIDAD"]
["2001-01-01","AÑO NUEVO"]
["2001-04-12","JUEVES SANTO"]
["2001-04-13","VIERNES SANTO"]
["2001-04-14","NO LABORABLE"]
["2001-05-01","DIA DEL TRABAJO"]
["2001-06-29","SAN PEDRO Y SAN PABLO"]
["2001-07-28","FIESTAS PATRIAS"]
["2001-07-29","FIESTAS PATRIAS"]
["2001-08-30","SANTA ROSA DE LIMA"]
["2001-10-08","COMBATE DE ANGAMOS"]
["2001-11-01","DIA DE LOS DIFUNTOS"]
["2001-12-08","DIA INMACULADA CONCEPCION"]
["2001-12-25","NAVIDAD"]
["2002-01-01","AÑO NUEVO"]
["2002-03-28","JUEVES SANTO"]
["2002-03-29","VIERNES SANTO"]
["2002-05-01","DIA DEL TRABAJO"]
["2002-06-29","SAN PEDRO Y SAN PABLO"]
["2002-07-28","FIESTAS PATRIAS"]
["2002-07-29","FIESTAS PATRIAS"]
["2002-08-30","SANTA ROSA DE LIMA"]
["2002-10-08","COMBATE DE ANGAMOS"]
["2002-11-01","DIA DE LOS DIFUNTOS"]
["2002-12-08","DIA INMACULADA CONCEPCION"]
["2002-12-25","NAVIDAD"]
["2003-01-01","AÑO NUEVO"]
["2003-04-17","JUEVES SANTO"]
["2003-04-18","VIERNES SANTO"]
["2003-05-01","DIA DEL TRABAJO"]
["2003-06-29","SAN PEDRO Y SAN PABLO"]
["2003-07-28","FIESTAS PATRIAS"]
["2003-07-29","FIESTAS PATRIAS"]
["2003-08-30","SANTA ROSA DE LIMA"]
["2003-10-08","COMBATE DE ANGAMOS"]
["2003-11-01","DIA DE LOS DIFUNTOS"]
["2003-12-08","DIA INMACULADA CONCEPCION"]
["2003-12-25","NAVIDAD"]
["2004-01-01","AÑO NUEVO"]
["2004-04-08","JUEVES SANTO"]
["2004-04-09","VIERNES SANTO"]
["2004-05-01","DIA DEL TRABAJO"]
["2004-06-29","SAN PEDRO Y SAN PABLO"]
["2004-07-28","FIESTAS PATRIAS"]
["2004-07-29","FIESTAS PATRIAS"]
["2004-08-30","SANTA ROSA DE LIMA"]
["2004-10-08","COMBATE DE ANGAMOS"]
["2004-11-01","DIA DE LOS DIFUNTOS"]
["2004-12-08","DIA INMACULADA CONCEPCION"]
["2004-12-25","NAVIDAD"]
["2005-01-01","AÑO NUEVO"]
["2005-03-24","JUEVES SANTO"]
["2005-03-25","VIERNES SANTO"]
["2005-05-01","DIA DEL TRABAJO"]
["2005-05-02","DIA DEL TRABAJO"]
["2005-06-29","SAN PEDRO Y SAN PABLO"]
["2005-07-28","FIESTAS PATRIAS"]
["2005-07-29","FIESTAS PATRIAS"]
["2005-08-30","SANTA ROSA DE LIMA"]
["2005-10-08","COMBATE DE ANGAMOS"]
["2005-11-01","DIA DE LOS DIFUNTOS"]
["2005-12-08","DIA INMACULADA CONCEPCION"]
["2005-12-25","NAVIDAD"]
["2006-01-01","ANIO NUEVO"]
["2006-04-13","JUEVES SANTO"]
["2006-04-14","VIERNES SANTO"]
["2006-05-01","DIA DEL TRABAJO"]
["2006-06-29","SAN PEDRO Y SAN PABLO"]
["2006-07-28","FIESTAS PATRIAS"]
["2006-07-29","FIESTAS PATRIAS"]
["2006-08-30","SANTA ROSA DE LIMA"]
["2006-10-08","COMBATE DE ANGAMOS"]
["2006-11-01","DIA DE LOS DIFUNTOS"]
["2006-12-08","DIA INMACULADA CONCEPCION"]
["2006-12-25","NAVIDAD"]
["2007-01-01","AÑO NUEVO"]
["2007-04-05","JUEVES SANTO"]
["2007-04-06","VIERNES SANTO"]
["2007-05-01","DIA DEL TRABAJO"]
["2007-06-29","SAN PEDRO Y SAN PABLO"]
["2007-07-28","FIESTAS PATRIAS"]
["2007-07-29","FIESTAS PATRIAS"]
["2007-08-30","SANTA ROSA DE LIMA"]
["2007-10-08","COMBATE DE ANGAMOS"]
["2007-11-01","DIA DE LOS DIFUNTOS"]
["2007-12-08","DIA INMACULADA CONCEPCION"]
["2007-12-24","FERIADO INSTITUCIONAL"]
["2007-12-25","NAVIDAD"]
["2008-01-01","AÑO NUEVO"]
["2008-03-20","JUEVES SANTO"]
["2008-03-21","VIERNES SANTO"]
["2008-05-01","DIA DEL TRABAJO"]
["2008-06-29","SAN PEDRO Y SAN PABLO"]
["2008-07-28","FIESTAS PATRIAS"]
["2008-07-29","FIESTAS PATRIAS"]
["2008-08-30","SANTA ROSA DE LIMA"]
["2008-10-08","COMBATE DE ANGAMOS"]
["2008-11-01","DIA DE LOS DIFUNTOS"]
["2008-12-08","DIA INMACULADA CONCEPCION"]
["2008-12-25","NAVIDAD"]
["2009-01-01","AÑO NUEVO"]
["2009-04-09","JUEVES SANTO"]
["2009-04-10","VIERNES SANTO"]
["2009-05-01","DIA DEL TRABAJO"]
["2009-06-29","SAN PEDRO Y SAN PABLO"]
["2009-07-28","FIESTAS PATRIAS"]
["2009-07-29","FIESTAS PATRIAS"]
["2009-08-30","SANTA ROSA DE LIMA"]
["2009-10-08","COMBATE DE ANGAMOS"]
["2009-11-01","DIA DE LOS DIFUNTOS"]
["2009-12-08","DIA INMACULADA CONCEPCION"]
["2009-12-25","NAVIDAD"]
["2010-01-01","AÑO NUEVO"]
["2010-04-01","JUEVES SANTO"]
["2010-04-02","VIERNES SANTO"]
["2010-05-01","DIA DEL TRABAJO"]
["2010-06-29","SAN PEDRO Y SAN PABLO"]
["2010-07-28","FIESTAS PATRIAS"]
["2010-07-29","FIESTAS PATRIAS"]
["2010-08-30","SANTA ROSA DE LIMA"]
["2010-10-08","COMBATE DE ANGAMOS"]
["2010-11-01","DIA DE LOS DIFUNTOS"]
["2010-12-08","DIA INMACULADA CONCEPCION"]
["2010-12-25","NAVIDAD"]
["2011-01-01","AÑO NUEVO"]
["2011-04-21","JUEVES SANTO"]
["2011-04-22","VIERNES SANTO"]
["2011-05-01","DIA DEL TRABAJO"]
["2011-06-29","SAN PEDRO Y SAN PABLO"]
["2011-07-28","FIESTAS PATRIAS"]
["2011-07-29","FIESTAS PATRIAS"]
["2011-08-30","SANTA ROSA DE LIMA"]
["2011-10-08","COMBATE DE ANGAMOS"]
["2011-11-01","DIA DE LOS DIFUNTOS"]
["2011-12-08","DIA INMACULADA CONCEPCION"]
["2011-12-25","NAVIDAD"]
["2012-01-01","ANO NUEVO"]
["2012-04-05","JUEVES SANTO"]
["2012-04-06","VIERNES SANTO"]
["2012-05-01","DIA DEL TRABAJO"]
["2012-06-29","SAN PEDRO Y SAN PABLO"]
["2012-07-28","FIESTAS PATRIAS"]
["2012-07-29","FIESTAS PATRIAS"]
["2012-08-30","SANTA ROSA DE LIMA"]
["2012-10-08","COMBATE DE ANGAMOS"]
["2012-11-01","DIA DE LOS DIFUNTOS"]
["2012-12-08","DIA INMACULADA CONCEPCION"]
["2012-12-25","NAVIDAD"]
["2013-01-01","AÑO NUEVO"]
["2013-03-28","JUEVES SANTO"]
["2013-03-29","VIERNES SANTO"]
["2013-05-01","DIA DEL TRABAJO"]
["2013-06-29","SAN PEDRO Y SAN PABLO"]
["2013-07-28","FIESTAS PATRIAS"]
["2013-07-29","FIESTAS PATRIAS"]
["2013-08-30","SANTA ROSA DE LIMA"]
["2013-10-08","COMBATE DE ANGAMOS"]
["2013-11-01","DIA DE LOS DIFUNTOS"]
["2013-12-08","DIA INMACULADA CONCEPCION"]
["2013-12-25","NAVIDAD"]
["2014-01-01","AÑO NUEVO"]
["2014-04-17","JUEVES SANTO"]
["2014-04-18","VIERNES SANTO"]
["2014-05-01","DIA DEL TRABAJO"]
["2014-06-29","SAN PEDRO Y SAN PABLO"]
["2014-07-28","FIESTAS PATRIAS"]
["2014-07-29","FIESTAS PATRIAS"]
["2014-08-30","SANTA ROSA DE LIMA"]
["2014-10-08","COMBATE DE ANGAMOS"]
["2014-11-01","DIA DE LOS DIFUNTOS"]
["2014-12-08","DIA INMACULADA CONCEPCION"]
["2014-12-25","NAVIDAD"]
["2015-01-01","AÑO NUEVO"]
["2015-04-02","JUEVES SANTO"]
["2015-04-03","VIERNES SANTO"]
["2015-05-01","DIA DEL TRABAJO"]
["2015-06-29","SAN PEDRO Y SAN PABLO"]
["2015-07-28","FIESTAS PATRIAS"]
["2015-07-29","FIESTAS PATRIAS"]
["2015-08-30","SANTA ROSA DE LIMA"]
["2015-10-08","COMBATE DE ANGAMOS"]
["2015-11-01","DIA DE LOS DIFUNTOS"]
["2015-12-08","DIA INMACULADA CONCEPCION"]
["2015-12-25","NAVIDAD"]
["2016-01-01","AÑO NUEVO"]
["2016-03-24","JUEVES SANTO"]
["2016-03-25","VIERNES SANTO"]
["2016-05-01","DIA DEL TRABAJO"]
["2016-06-29","SAN PEDRO Y SAN PABLO"]
["2016-07-28","FIESTAS PATRIAS"]
["2016-07-29","FIESTAS PATRIAS"]
["2016-08-30","SANTA ROSA DE LIMA"]
["2016-10-08","COMBATE DE ANGAMOS"]
["2016-11-01","DIA DE LOS DIFUNTOS"]
["2016-12-08","DIA INMACULADA CONCEPCION"]
["2016-12-25","NAVIDAD"]
["2017-01-01","ANO NUEVO"]
["2017-04-13","JUEVES SANTO"]
["2017-04-14","VIERNES SANTO"]
["2017-05-01","DIA DEL TRABAJO"]
["2017-06-29","SAN PEDRO Y SAN PABLO"]
["2017-07-28","FIESTAS PATRIAS"]
["2017-07-29","FIESTAS PATRIAS"]
["2017-08-30","SANTA ROSA DE LIMA"]
["2017-10-08","COMBATE DE ANGAMOS"]
["2017-11-01","DIA DE LOS DIFUNTOS"]
["2017-12-08","DIA INMACULADA CONCEPCION"]
["2017-12-25","NAVIDAD"]
["2018-01-01","AÑO NUEVO"]
["2018-03-29","JUEVES SANTO"]
["2018-03-30","VIERNES SANTO"]
["2018-05-01","DIA DEL TRABAJO"]
["2018-06-29","SAN PEDRO Y SAN PABLO"]
["2018-07-28","FIESTAS PATRIAS"]
["2018-07-29","FIESTAS PATRIAS"]
["2018-08-30","SANTA ROSA DE LIMA"]
["2018-10-08","COMBATE DE ANGAMOS"]
["2018-11-01","DIA DE LOS DIFUNTOS"]
["2018-12-08","DIA INMACULADA CONCEPCION"]
["2018-12-25","NAVIDAD"]
["2019-01-01","AÑO NUEVO"]
["2019-04-18","JUEVES SANTO"]
["2019-04-19","VIERNES SANTO"]
["2019-05-01","DIA DEL TRABAJO"]
["2019-06-29","SAN PEDRO Y SAN PABLO"]
["2019-07-28","FIESTAS PATRIAS"]
["2019-07-29","FIESTAS PATRIAS"]
["2019-08-30","SANTA ROSA DE LIMA"]
["2019-10-08","COMBATE DE ANGAMOS"]
["2019-11-01","DIA DE LOS DIFUNTOS"]
["2019-12-08","DIA INMACULADA CONCEPCION"]
["2019-12-25","NAVIDAD"]
["2020-01-01","AÑO NUEVO"]
["2020-04-09","JUEVES SANTO"]
["2020-04-10","VIERNES SANTO"]
["2020-05-01","DIA DEL TRABAJO"]
["2020-06-29","SAN PEDRO Y SAN PABLO"]
["2020-07-28","FIESTAS PATRIAS"]
["2020-07-29","FIESTAS PATRIAS"]
["2020-08-30","SANTA ROSA DE LIMA"]
["2020-10-08","COMBATE DE ANGAMOS"]
["2020-11-01","DIA DE LOS DIFUNTOS"]
["2020-12-08","DIA INMACULADA CONCEPCION"]
["2020-12-25","NAVIDAD"]
["2021-01-01","AÑO NUEVO"]
["2021-04-01","JUEVES SANTO"]
["2021-04-02","VIERNES SANTO"]
["2021-05-01","DIA DEL TRABAJO"]
["2021-06-29","SAN PEDRO Y SAN PABLO"]
["2021-07-28","FIESTAS PATRIAS"]
["2021-07-29","FIESTAS PATRIAS"]
["2021-08-30","SANTA ROSA DE LIMA"]
["2021-10-08","COMBATE DE ANGAMOS"]
["2021-11-01","DIA DE LOS DIFUNTOS"]
["2021-12-08","DIA INMACULADA CONCEPCION"]
["2021-12-25","NAVIDAD"]
["2022-01-01","AÑO NUEVO"]
["2022-04-14","JUEVES SANTO"]
["2022-04-15","VIERNES SANTO"]
["2022-05-01","DIA DEL TRABAJO"]
["2022-06-29","SAN PEDRO Y SAN PABLO"]
["2022-07-28","FIESTAS PATRIAS"]
["2022-07-29","FIESTAS PATRIAS"]
["2022-08-30","SANTA ROSA DE LIMA"]
["2022-10-08","COMBATE DE ANGAMOS"]
["2022-11-01","DIA DE LOS DIFUNTOS"]
["2022-12-08","DIA INMACULADA CONCEPCION"]
["2022-12-25","NAVIDAD"]
["2023-01-01","ANO NUEVO"]
["2023-04-06","JUEVES SANTO"]
["2023-04-07","VIERNES SANTO"]
["2023-05-01","DIA DEL TRABAJO"]
["2023-06-29","SAN PEDRO Y SAN PABLO"]
["2023-07-28","FIESTAS PATRIAS"]
["2023-07-29","FIESTAS PATRIAS"]
["2023-08-30","SANTA ROSA DE LIMA"]
["2023-10-08","COMBATE DE ANGAMOS"]
["2023-11-01","DIA DE LOS DIFUNTOS"]
["2023-12-08","DIA INMACULADA CONCEPCION"]
["2023-12-25","NAVIDAD"]
["2024-01-01","AÑO NUEVO"]
["2024-03-28","JUEVES SANTO"]
["2024-03-29","VIERNES SANTO"]
["2024-05-01","DIA DEL TRABAJO"]
["2024-06-29","SAN PEDRO Y SAN PABLO"]
["2024-07-28","FIESTAS PATRIAS"]
["2024-07-29","FIESTAS PATRIAS"]
["2024-08-30","SANTA ROSA DE LIMA"]
["2024-10-08","COMBATE DE ANGAMOS"]
["2024-11-01","DIA DE LOS DIFUNTOS"]
["2024-12-08","DIA INMACULADA CONCEPCION"]
["2024-12-25","NAVIDAD"]
["2025-01-01","AÑO NUEVO"]
["2025-04-17","JUEVES SANTO"]
["2025-04-18","VIERNES SANTO"]
["2025-05-01","DIA DEL TRABAJO"]
["2025-06-29","SAN PEDRO Y SAN PABLO"]
["2025-07-28","FIESTAS PATRIAS"]
["2025-07-29","FIESTAS PATRIAS"]
["2025-08-30","SANTA ROSA DE LIMA"]
["2025-10-08","COMBATE DE ANGAMOS"]
["2025-11-01","DIA DE LOS DIFUNTOS"]
["2025-12-08","DIA INMACULADA CONCEPCION"]
["2025-12-25","NAVIDAD"]
["2026-01-01","AÑO NUEVO"]
["2026-04-02","JUEVES SANTO"]
["2026-04-03","VIERNES SANTO"]
["2026-05-01","DIA DEL TRABAJO"]
["2026-06-29","SAN PEDRO Y SAN PABLO"]
["2026-07-28","FIESTAS PATRIAS"]
["2026-07-29","FIESTAS PATRIAS"]
["2026-08-30","SANTA ROSA DE LIMA"]
["2026-10-08","COMBATE DE ANGAMOS"]
["2026-11-01","DIA DE LOS DIFUNTOS"]
["2026-12-08","DIA INMACULADA CONCEPCION"]
["2026-12-25","NAVIDAD"]
["2027-01-01","AÑO NUEVO"]
["2027-03-25","JUEVES SANTO"]
["2027-03-26","VIERNES SANTO"]
["2027-05-01","DIA DEL TRABAJO"]
["2027-06-29","SAN PEDRO Y SAN PABLO"]
["2027-07-28","FIESTAS PATRIAS"]
["2027-07-29","FIESTAS PATRIAS"]
["2027-08-30","SANTA ROSA DE LIMA"]
["2027-10-08","COMBATE DE ANGAMOS"]
["2027-11-01","DIA DE LOS DIFUNTOS"]
["2027-12-08","DIA INMACULADA CONCEPCION"]
["2027-12-25","NAVIDAD"]
["2028-01-01","AÑO NUEVO"]
["2028-04-13","JUEVES SANTO"]
["2028-04-14","VIERNES SANTO"]
["2028-05-01","DIA DEL TRABAJO"]
["2028-06-29","SAN PEDRO Y SAN PABLO"]
["2028-07-28","FIESTAS PATRIAS"]
["2028-07-29","FIESTAS PATRIAS"]
["2028-08-30","SANTA ROSA DE LIMA"]
["2028-10-08","COMBATE DE ANGAMOS"]
["2028-11-01","DIA DE LOS DIFUNTOS"]
["2028-12-08","DIA INMACULADA CONCEPCION"]
["2028-12-25","NAVIDAD"]
["2029-01-01","AÑO NUEVO"]
["2029-03-29","JUEVES SANTO"]
["2029-03-30","VIERNES SANTO"]
["2029-05-01","DIA DEL TRABAJO"]
["2029-06-29","SAN PEDRO Y SAN PABLO"]
["2029-07-28","FIESTAS PATRIAS"]
["2029-07-29","FIESTAS PATRIAS"]
["2029-08-30","SANTA ROSA DE LIMA"]
["2029-10-08","COMBATE DE ANGAMOS"]
["2029-11-01","DIA DE LOS DIFUNTOS"]
["2029-12-08","DIA INMACULADA CONCEPCION"]
["2029-12-25","NAVIDAD"]
["2030-01-01","AÑO NUEVO"]
["2030-04-18","JUEVES SANTO"]
["2030-04-19","VIERNES SANTO"]
["2030-05-01","DIA DEL TRABAJO"]
["2030-06-29","SAN PEDRO Y SAN PABLO"]
["2030-07-28","FIESTAS PATRIAS"]
["2030-07-29","FIESTAS PATRIAS"]
["2030-08-30","SANTA ROSA DE LIMA"]
["2030-10-08","COMBATE DE ANGAMOS"]
["2030-11-01","DIA DE LOS DIFUNTOS"]
["2030-12-08","DIA INMACULADA CONCEPCION"]
["2030-12-25","NAVIDAD"]
["2031-01-01","AÑO NUEVO"]
["2031-04-10","JUEVES SANTO"]
["2031-04-11","VIERNES SANTO"]
["2031-05-01","DIA DEL TRABAJO"]
["2031-06-29","SAN PEDRO Y SAN PABLO"]
["2031-07-28","FIESTAS PATRIAS"]
["2031-07-29","FIESTAS PATRIAS"]
["2031-08-30","SANTA ROSA DE LIMA"]
["2031-10-08","COMBATE DE ANGAMOS"]
["2031-11-01","DIA DE LOS DIFUNTOS"]
["2031-12-08","DIA INMACULADA CONCEPCION"]
["2031-12-25","NAVIDAD"]
["2032-01-01","AÑO NUEVO"]
["2032-03-25","JUEVES SANTO"]
["2032-03-26","VIERNES SANTO"]
["2032-05-01","DIA DEL TRABAJO"]
["2032-06-29","SAN PEDRO Y SAN PABLO"]
["2032-07-28","FIESTAS PATRIAS"]
["2032-07-29","FIESTAS PATRIAS"]
["2032-08-30","SANTA ROSA DE LIMA"]
["2032-10-08","COMBATE DE ANGAMOS"]
["2032-11-01","DIA DE LOS DIFUNTOS"]
["2032-12-08","DIA INMACULADA CONCEPCION"]
["2032-12-25","NAVIDAD"]
["2033-01-01","AÑO NUEVO"]
["2033-04-14","JUEVES SANTO"]
["2033-04-15","VIERNES SANTO"]
["2033-05-01","DIA DEL TRABAJO"]
["2033-06-29","SAN PEDRO Y SAN PABLO"]
["2033-07-28","FIESTAS PATRIAS"]
["2033-07-29","FIESTAS PATRIAS"]
["2033-08-30","SANTA ROSA DE LIMA"]
["2033-10-08","COMBATE DE ANGAMOS"]
["2033-11-01","DIA DE LOS DIFUNTOS"]
["2033-12-08","DIA INMACULADA CONCEPCION"]
["2033-12-25","NAVIDAD"]
["2034-01-01","ANO NUEVO"]
["2034-04-06","JUEVES SANTO"]
["2034-04-07","VIERNES SANTO"]
["2034-05-01","DIA DEL TRABAJO"]
["2034-06-29","SAN PEDRO Y SAN PABLO"]
["2034-07-28","FIESTAS PATRIAS"]
["2034-07-29","FIESTAS PATRIAS"]
["2034-08-30","SANTA ROSA DE LIMA"]
["2034-10-08","COMBATE DE ANGAMOS"]
["2034-11-01","DIA DE LOS DIFUNTOS"]
["2034-12-08","DIA INMACULADA CONCEPCION"]
["2034-12-25","NAVIDAD"]
["2035-01-01","AÑO NUEVO"]
["2035-03-22","JUEVES SANTO"]
["2035-03-23","VIERNES SANTO"]
["2035-05-01","DIA DEL TRABAJO"]
["2035-06-29","SAN PEDRO Y SAN PABLO"]
["2035-07-28","FIESTAS PATRIAS"]
["2035-07-29","FIESTAS PATRIAS"]
["2035-08-30","SANTA ROSA DE LIMA"]
["2035-10-08","COMBATE DE ANGAMOS"]
["2035-11-01","DIA DE LOS DIFUNTOS"]
["2035-12-08","DIA INMACULADA CONCEPCION"]
["2035-12-25","NAVIDAD"]
["2036-01-01","AÑO NUEVO"]
["2036-04-10","JUEVES SANTO"]
["2036-04-11","VIERNES SANTO"]
["2036-05-01","DIA DEL TRABAJO"]
["2036-06-29","SAN PEDRO Y SAN PABLO"]
["2036-07-28","FIESTAS PATRIAS"]
["2036-07-29","FIESTAS PATRIAS"]
["2036-08-30","SANTA ROSA DE LIMA"]
["2036-10-08","COMBATE DE ANGAMOS"]
["2036-11-01","DIA DE LOS DIFUNTOS"]
["2036-12-08","DIA INMACULADA CONCEPCION"]
["2036-12-25","NAVIDAD"]
["2037-01-01","AÑO NUEVO"]
["2037-04-02","JUEVES SANTO"]
["2037-04-03","VIERNES SANTO"]
["2037-05-01","DIA DEL TRABAJO"]
["2037-06-29","SAN PEDRO Y SAN PABLO"]
["2037-07-28","FIESTAS PATRIAS"]
["2037-07-29","FIESTAS PATRIAS"]
["2037-08-30","SANTA ROSA DE LIMA"]
["2037-10-08","COMBATE DE ANGAMOS"]
["2037-11-01","DIA DE LOS DIFUNTOS"]
["2037-12-08","DIA INMACULADA CONCEPCION"]
["2037-12-25","NAVIDAD"]
["2038-01-01","AÑO NUEVO"]
["2038-04-22","JUEVES SANTO"]
["2038-04-23","VIERNES SANTO"]
["2038-05-01","DIA DEL TRABAJO"]
["2038-06-29","SAN PEDRO Y SAN PABLO"]
["2038-07-28","FIESTAS PATRIAS"]
["2038-07-29","FIESTAS PATRIAS"]
["2038-08-30","SANTA ROSA DE LIMA"]
["2038-10-08","COMBATE DE ANGAMOS"]
["2038-11-01","DIA DE LOS DIFUNTOS"]
["2038-12-08","DIA INMACULADA CONCEPCION"]
["2038-12-25","NAVIDAD"]
["2039-01-01","AÑO NUEVO"]
["2039-04-07","JUEVES SANTO"]
["2039-04-08","VIERNES SANTO"]
["2039-05-01","DIA DEL TRABAJO"]
["2039-06-29","SAN PEDRO Y SAN PABLO"]
["2039-07-28","FIESTAS PATRIAS"]
["2039-07-29","FIESTAS PATRIAS"]
["2039-08-30","SANTA ROSA DE LIMA"]
["2039-10-08","COMBATE DE ANGAMOS"]
["2039-11-01","DIA DE LOS DIFUNTOS"]
["2039-12-08","DIA INMACULADA CONCEPCION"]
["2039-12-25","NAVIDAD"]
["2040-01-01","ANO NUEVO"]
["2040-03-29","JUEVES SANTO"]
["2040-03-30","VIERNES SANTO"]
["2040-05-01","DIA DEL TRABAJO"]
["2040-06-29","SAN PEDRO Y SAN PABLO"]
["2040-07-28","FIESTAS PATRIAS"]
["2040-07-29","FIESTAS PATRIAS"]
["2040-08-30","SANTA ROSA DE LIMA"]
["2040-10-08","COMBATE DE ANGAMOS"]
["2040-11-01","DIA DE LOS DIFUNTOS"]
["2040-12-08","DIA INMACULADA CONCEPCION"]
["2040-12-25","NAVIDAD"]
["2041-01-01","AÑO NUEVO"]
["2041-04-18","JUEVES SANTO"]
["2041-04-19","VIERNES SANTO"]
["2041-05-01","DIA DEL TRABAJO"]
["2041-06-29","SAN PEDRO Y SAN PABLO"]
["2041-07-28","FIESTAS PATRIAS"]
["2041-07-29","FIESTAS PATRIAS"]
["2041-08-30","SANTA ROSA DE LIMA"]
["2041-10-08","COMBATE DE ANGAMOS"]
["2041-11-01","DIA DE LOS DIFUNTOS"]
["2041-12-08","DIA INMACULADA CONCEPCION"]
["2041-12-25","NAVIDAD"]
["2042-01-01","AÑO NUEVO"]
["2042-04-03","JUEVES SANTO"]
["2042-04-04","VIERNES SANTO"]
["2042-05-01","DIA DEL TRABAJO"]
["2042-06-29","SAN PEDRO Y SAN PABLO"]
["2042-07-28","FIESTAS PATRIAS"]
["2042-07-29","FIESTAS PATRIAS"]
["2042-08-30","SANTA ROSA DE LIMA"]
["2042-10-08","COMBATE DE ANGAMOS"]
["2042-11-01","DIA DE LOS DIFUNTOS"]
["2042-12-08","DIA INMACULADA CONCEPCION"]
["2042-12-25","NAVIDAD"]
["2043-01-01","AÑO NUEVO"]
["2043-03-26","JUEVES SANTO"]
["2043-03-27","VIERNES SANTO"]
["2043-05-01","DIA DEL TRABAJO"]
["2043-06-29","SAN PEDRO Y SAN PABLO"]
["2043-07-28","FIESTAS PATRIAS"]
["2043-07-29","FIESTAS PATRIAS"]
["2043-08-30","SANTA ROSA DE LIMA"]
["2043-10-08","COMBATE DE ANGAMOS"]
["2043-11-01","DIA DE LOS DIFUNTOS"]
["2043-12-08","DIA INMACULADA CONCEPCION"]
["2043-12-25","NAVIDAD"]
["2044-01-01","AÑO NUEVO"]
["2044-04-14","JUEVES SANTO"]
["2044-04-15","VIERNES SANTO"]
["2044-05-01","DIA DEL TRABAJO"]
["2044-06-29","SAN PEDRO Y SAN PABLO"]
["2044-07-28","FIESTAS PATRIAS"]
["2044-07-29","FIESTAS PATRIAS"]
["2044-08-30","SANTA ROSA DE LIMA"]
["2044-10-08","COMBATE DE ANGAMOS"]
["2044-11-01","DIA DE LOS DIFUNTOS"]
["2044-12-08","DIA INMACULADA CONCEPCION"]
["2044-12-25","NAVIDAD"]
["2045-01-01","ANO NUEVO"]
["2045-04-06","JUEVES SANTO"]
["2045-04-07","VIERNES SANTO"]
["2045-05-01","DIA DEL TRABAJO"]
["2045-06-29","SAN PEDRO Y SAN PABLO"]
["2045-07-28","FIESTAS PATRIAS"]
["2045-07-29","FIESTAS PATRIAS"]
["2045-08-30","SANTA ROSA DE LIMA"]
["2045-10-08","COMBATE DE ANGAMOS"]
["2045-11-01","DIA DE LOS DIFUNTOS"]
["2045-12-08","DIA INMACULADA CONCEPCION"]
["2045-12-25","NAVIDAD"]
["2046-01-01","AÑO NUEVO"]
["2046-03-22","JUEVES SANTO"]
["2046-03-23","VIERNES SANTO"]
["2046-05-01","DIA DEL TRABAJO"]
["2046-06-29","SAN PEDRO Y SAN PABLO"]
["2046-07-28","FIESTAS PATRIAS"]
["2046-07-29","FIESTAS PATRIAS"]
["2046-08-30","SANTA ROSA DE LIMA"]
["2046-10-08","COMBATE DE ANGAMOS"]
["2046-11-01","DIA DE LOS DIFUNTOS"]
["2046-12-08","DIA INMACULADA CONCEPCION"]
["2046-12-25","NAVIDAD"]
["2047-01-01","AÑO NUEVO"]
["2047-04-11","JUEVES SANTO"]
["2047-04-12","VIERNES SANTO"]
["2047-05-01","DIA DEL TRABAJO"]
["2047-06-29","SAN PEDRO Y SAN PABLO"]
["2047-07-28","FIESTAS PATRIAS"]
["2047-07-29","FIESTAS PATRIAS"]
["2047-08-30","SANTA ROSA DE LIMA"]
["2047-10-08","COMBATE DE ANGAMOS"]
["2047-11-01","DIA DE LOS DIFUNTOS"]
["2047-12-08","DIA INMACULADA CONCEPCION"]
["2047-12-25","NAVIDAD"]
["2048-01-01","AÑO NUEVO"]
["2048-04-02","JUEVES SANTO"]
["2048-04-03","VIERNES SANTO"]
["2048-05-01","DIA DEL TRABAJO"]
["2048-06-29","SAN PEDRO Y SAN PABLO"]
["2048-07-28","FIESTAS PATRIAS"]
["2048-07-29","FIESTAS PATRIAS"]
["2048-08-30","SANTA ROSA DE LIMA"]
["2048-10-08","COMBATE DE ANGAMOS"]
["2048-11-01","DIA DE LOS DIFUNTOS"]
["2048-12-08","DIA INMACULADA CONCEPCION"]
["2048-12-25","NAVIDAD"]
["2049-01-01","AÑO NUEVO"]
["2049-04-15","JUEVES SANTO"]
["2049-04-16","VIERNES SANTO"]
["2049-05-01","DIA DEL TRABAJO"]
["2049-06-29","SAN PEDRO Y SAN PABLO"]
["2049-07-28","FIESTAS PATRIAS"]
["2049-07-29","FIESTAS PATRIAS"]
["2049-08-30","SANTA ROSA DE LIMA"]
["2049-10-08","COMBATE DE ANGAMOS"]
["2049-11-01","DIA DE LOS DIFUNTOS"]
["2049-12-08","DIA INMACULADA CONCEPCION"]
["2049-12-25","NAVIDAD"]
["2050-01-01","AÑO NUEVO"]
["2050-04-07","JUEVES SANTO"]
["2050-04-08","VIERNES SANTO"]
["2050-05-01","DIA DEL TRABAJO"]
["2050-06-29","SAN PEDRO Y SAN PABLO"]
["2050-07-28","FIESTAS PATRIAS"]
["2050-07-29","FIESTAS PATRIAS"]
["2050-08-30","SANTA ROSA DE LIMA"]
["2050-10-08","COMBATE DE ANGAMOS"]
["2050-11-01","DIA DE LOS DIFUNTOS"]
["2050-12-08","DIA INMACULADA CONCEPCION"]
["2050-12-25","NAVIDAD"]
["2051-01-01","ANO NUEVO"]
["2051-03-30","JUEVES SANTO"]
["2051-03-31","VIERNES SANTO"]
["2051-05-01","DIA DEL TRABAJO"]
["2051-06-29","SAN PEDRO Y SAN PABLO"]
["2051-07-28","FIESTAS PATRIAS"]
["2051-07-29","FIESTAS PATRIAS"]
["2051-08-30","SANTA ROSA DE LIMA"]
["2051-10-08","COMBATE DE ANGAMOS"]
["2051-11-01","DIA DE LOS DIFUNTOS"]
["2051-12-08","DIA INMACULADA CONCEPCION"]
["2051-12-25","NAVIDAD"]
["2052-01-01","AÑO NUEVO"]
["2052-04-18","JUEVES SANTO"]
["2052-04-19","VIERNES SANTO"]
["2052-05-01","DIA DEL TRABAJO"]
["2052-06-29","SAN PEDRO Y SAN PABLO"]
["2052-07-28","FIESTAS PATRIAS"]
["2052-07-29","FIESTAS PATRIAS"]
["2052-08-30","SANTA ROSA DE LIMA"]
["2052-10-08","COMBATE DE ANGAMOS"]
["2052-11-01","DIA DE LOS DIFUNTOS"]
["2052-12-08","DIA INMACULADA CONCEPCION"]
["2052-12-25","NAVIDAD"]
["2053-01-01","AÑO NUEVO"]
["2053-04-03","JUEVES SANTO"]
["2053-04-04","VIERNES SANTO"]
["2053-05-01","DIA DEL TRABAJO"]
["2053-06-29","SAN PEDRO Y SAN PABLO"]
["2053-07-28","FIESTAS PATRIAS"]
["2053-07-29","FIESTAS PATRIAS"]
["2053-08-30","SANTA ROSA DE LIMA"]
["2053-10-08","COMBATE DE ANGAMOS"]
["2053-11-01","DIA DE LOS DIFUNTOS"]
["2053-12-08","DIA INMACULADA CONCEPCION"]
["2053-12-25","NAVIDAD"]
["2054-01-01","AÑO NUEVO"]
["2054-03-26","JUEVES SANTO"]
["2054-03-27","VIERNES SANTO"]
["2054-05-01","DIA DEL TRABAJO"]
["2054-06-29","SAN PEDRO Y SAN PABLO"]
["2054-07-28","FIESTAS PATRIAS"]
["2054-07-29","FIESTAS PATRIAS"]
["2054-08-30","SANTA ROSA DE LIMA"]
["2054-10-08","COMBATE DE ANGAMOS"]
["2054-11-01","DIA DE LOS DIFUNTOS"]
["2054-12-08","DIA INMACULADA CONCEPCION"]
["2054-12-25","NAVIDAD"]
["2055-01-01","AÑO NUEVO"]
["2055-04-15","JUEVES SANTO"]
["2055-04-16","VIERNES SANTO"]
["2055-05-01","DIA DEL TRABAJO"]
["2055-06-29","SAN PEDRO Y SAN PABLO"]
["2055-07-28","FIESTAS PATRIAS"]
["2055-07-29","FIESTAS PATRIAS"]
["2055-08-30","SANTA ROSA DE LIMA"]
["2055-10-08","COMBATE DE ANGAMOS"]
["2055-11-01","DIA DE LOS DIFUNTOS"]
["2055-12-08","DIA INMACULADA CONCEPCION"]
["2055-12-25","NAVIDAD"]
["2056-01-01","AÑO NUEVO"]
["2056-03-30","JUEVES SANTO"]
["2056-03-31","VIERNES SANTO"]
["2056-05-01","DIA DEL TRABAJO"]
["2056-06-29","SAN PEDRO Y SAN PABLO"]
["2056-07-28","FIESTAS PATRIAS"]
["2056-07-29","FIESTAS PATRIAS"]
["2056-08-30","SANTA ROSA DE LIMA"]
["2056-10-08","COMBATE DE ANGAMOS"]
["2056-11-01","DIA DE LOS DIFUNTOS"]
["2056-12-08","DIA INMACULADA CONCEPCION"]
["2056-12-25","NAVIDAD"]
["2057-01-01","AÑO NUEVO"]
["2057-04-19","JUEVES SANTO"]
["2057-04-20","VIERNES SANTO"]
["2057-05-01","DIA DEL TRABAJO"]
["2057-06-29","SAN PEDRO Y SAN PABLO"]
["2057-07-28","FIESTAS PATRIAS"]
["2057-07-29","FIESTAS PATRIAS"]
["2057-08-30","SANTA ROSA DE LIMA"]
["2057-10-08","COMBATE DE ANGAMOS"]
["2057-11-01","DIA DE LOS DIFUNTOS"]
["2057-12-08","DIA INMACULADA CONCEPCION"]
["2057-12-25","NAVIDAD"]
["2058-01-01","AÑO NUEVO"]
["2058-04-11","JUEVES SANTO"]
["2058-04-12","VIERNES SANTO"]
["2058-05-01","DIA DEL TRABAJO"]
["2058-06-29","SAN PEDRO Y SAN PABLO"]
["2058-07-28","FIESTAS PATRIAS"]
["2058-07-29","FIESTAS PATRIAS"]
["2058-08-30","SANTA ROSA DE LIMA"]
["2058-10-08","COMBATE DE ANGAMOS"]
["2058-11-01","DIA DE LOS DIFUNTOS"]
["2058-12-08","DIA INMACULADA CONCEPCION"]
["2058-12-25","NAVIDAD"]
["2059-01-01","AÑO NUEVO"]
["2059-03-27","JUEVES SANTO"]
["2059-03-28","VIERNES SANTO"]
["2059-05-01","DIA DEL TRABAJO"]
["2059-06-29","SAN PEDRO Y SAN PABLO"]
["2059-07-28","FIESTAS PATRIAS"]
["2059-07-29","FIESTAS PATRIAS"]
["2059-08-30","SANTA ROSA DE LIMA"]
["2059-10-08","COMBATE DE ANGAMOS"]
["2059-11-01","DIA DE LOS DIFUNTOS"]
["2059-12-08","DIA INMACULADA CONCEPCION"]
["2059-12-25","NAVIDAD"]
["2060-01-01","AÑO NUEVO"]
["2060-04-15","JUEVES SANTO"]
["2060-04-16","VIERNES SANTO"]
["2060-05-01","DIA DEL TRABAJO"]
["2060-06-29","SAN PEDRO Y SAN PABLO"]
["2060-07-28","FIESTAS PATRIAS"]
["2060-07-29","FIESTAS PATRIAS"]
["2060-08-30","SANTA ROSA DE LIMA"]
["2060-10-08","COMBATE DE ANGAMOS"]
["2060-11-01","DIA DE LOS DIFUNTOS"]
["2060-12-08","DIA INMACULADA CONCEPCION"]
["2060-12-25","NAVIDAD"]
["2061-01-01","AÑO NUEVO"]
["2061-04-07","JUEVES SANTO"]
["2061-04-08","VIERNES SANTO"]
["2061-05-01","DIA DEL TRABAJO"]
["2061-06-29","SAN PEDRO Y SAN PABLO"]
["2061-07-28","FIESTAS PATRIAS"]
["2061-07-29","FIESTAS PATRIAS"]
["2061-08-30","SANTA ROSA DE LIMA"]
["2061-10-08","COMBATE DE ANGAMOS"]
["2061-11-01","DIA DE LOS DIFUNTOS"]
["2061-12-08","DIA INMACULADA CONCEPCION"]
["2061-12-25","NAVIDAD"]
["2062-01-01","ANO NUEVO"]
["2062-03-23","JUEVES SANTO"]
["2062-03-24","VIERNES SANTO"]
["2062-05-01","DIA DEL TRABAJO"]
["2062-06-29","SAN PEDRO Y SAN PABLO"]
["2062-07-28","FIESTAS PATRIAS"]
["2062-07-29","FIESTAS PATRIAS"]
["2062-08-30","SANTA ROSA DE LIMA"]
["2062-10-08","COMBATE DE ANGAMOS"]
["2062-11-01","DIA DE LOS DIFUNTOS"]
["2062-12-08","DIA INMACULADA CONCEPCION"]
["2062-12-25","NAVIDAD"]
["2063-01-01","AÑO NUEVO"]
["2063-04-12","JUEVES SANTO"]
["2063-04-13","VIERNES SANTO"]
["2063-05-01","DIA DEL TRABAJO"]
["2063-06-29","SAN PEDRO Y SAN PABLO"]
["2063-07-28","FIESTAS PATRIAS"]
["2063-07-29","FIESTAS PATRIAS"]
["2063-08-30","SANTA ROSA DE LIMA"]
["2063-10-08","COMBATE DE ANGAMOS"]
["2063-11-01","DIA DE LOS DIFUNTOS"]
["2063-12-08","DIA INMACULADA CONCEPCION"]
["2063-12-25","NAVIDAD"]
["2064-01-01","AÑO NUEVO"]
["2064-04-03","JUEVES SANTO"]
["2064-04-04","VIERNES SANTO"]
["2064-05-01","DIA DEL TRABAJO"]
["2064-06-29","SAN PEDRO Y SAN PABLO"]
["2064-07-28","FIESTAS PATRIAS"]
["2064-07-29","FIESTAS PATRIAS"]
["2064-08-30","SANTA ROSA DE LIMA"]
["2064-10-08","COMBATE DE ANGAMOS"]
["2064-11-01","DIA DE LOS DIFUNTOS"]
["2064-12-08","DIA INMACULADA CONCEPCION"]
["2064-12-25","NAVIDAD"]
["2065-01-01","AÑO NUEVO"]
["2065-03-26","JUEVES SANTO"]
["2065-03-27","VIERNES SANTO"]
["2065-05-01","DIA DEL TRABAJO"]
["2065-06-29","SAN PEDRO Y SAN PABLO"]
["2065-07-28","FIESTAS PATRIAS"]
["2065-07-29","FIESTAS PATRIAS"]
["2065-08-30","SANTA ROSA DE LIMA"]
["2065-10-08","COMBATE DE ANGAMOS"]
["2065-11-01","DIA DE LOS DIFUNTOS"]
["2065-12-08","DIA INMACULADA CONCEPCION"]
["2065-12-25","NAVIDAD"]
["2066-01-01","AÑO NUEVO"]
["2066-04-08","JUEVES SANTO"]
["2066-04-09","VIERNES SANTO"]
["2066-05-01","DIA DEL TRABAJO"]
["2066-06-29","SAN PEDRO Y SAN PABLO"]
["2066-07-28","FIESTAS PATRIAS"]
["2066-07-29","FIESTAS PATRIAS"]
["2066-08-30","SANTA ROSA DE LIMA"]
["2066-10-08","COMBATE DE ANGAMOS"]
["2066-11-01","DIA DE LOS DIFUNTOS"]
["2066-12-08","DIA INMACULADA CONCEPCION"]
["2066-12-25","NAVIDAD"]
["2067-01-01","AÑO NUEVO"]
["2067-03-31","JUEVES SANTO"]
["2067-04-01","VIERNES SANTO"]
["2067-05-01","DIA DEL TRABAJO"]
["2067-06-29","SAN PEDRO Y SAN PABLO"]
["2067-07-28","FIESTAS PATRIAS"]
["2067-07-29","FIESTAS PATRIAS"]
["2067-08-30","SANTA ROSA DE LIMA"]
["2067-10-08","COMBATE DE ANGAMOS"]
["2067-11-01","DIA DE LOS DIFUNTOS"]
["2067-12-08","DIA INMACULADA CONCEPCION"]
["2067-12-25","NAVIDAD"]
["2068-01-01","ANO NUEVO"]
["2068-04-19","JUEVES SANTO"]
["2068-04-20","VIERNES SANTO"]
["2068-05-01","DIA DEL TRABAJO"]
["2068-06-29","SAN PEDRO Y SAN PABLO"]
["2068-07-28","FIESTAS PATRIAS"]
["2068-07-29","FIESTAS PATRIAS"]
["2068-08-30","SANTA ROSA DE LIMA"]
["2068-10-08","COMBATE DE ANGAMOS"]
["2068-11-01","DIA DE LOS DIFUNTOS"]
["2068-12-08","DIA INMACULADA CONCEPCION"]
["2068-12-25","NAVIDAD"]
["2069-01-01","AÑO NUEVO"]
["2069-04-11","JUEVES SANTO"]
["2069-04-12","VIERNES SANTO"]
["2069-05-01","DIA DEL TRABAJO"]
["2069-06-29","SAN PEDRO Y SAN PABLO"]
["2069-07-28","FIESTAS PATRIAS"]
["2069-07-29","FIESTAS PATRIAS"]
["2069-08-30","SANTA ROSA DE LIMA"]
["2069-10-08","COMBATE DE ANGAMOS"]
["2069-11-01","DIA DE LOS DIFUNTOS"]
["2069-12-08","DIA INMACULADA CONCEPCION"]
["2069-12-25","NAVIDAD"]
["2070-01-01","AÑO NUEVO"]
["2070-03-27","JUEVES SANTO"]
["2070-03-28","VIERNES SANTO"]
["2070-05-01","DIA DEL TRABAJO"]
["2070-06-29","SAN PEDRO Y SAN PABLO"]
["2070-07-28","FIESTAS PATRIAS"]
["2070-07-29","FIESTAS PATRIAS"]
["2070-08-30","SANTA ROSA DE LIMA"]
["2070-10-08","COMBATE DE ANGAMOS"]
["2070-11-01","DIA DE LOS DIFUNTOS"]
["2070-12-08","DIA INMACULADA CONCEPCION"]
["2070-12-25","NAVIDAD"]
["2071-01-01","AÑO NUEVO"]
["2071-04-16","JUEVES SANTO"]
["2071-04-17","VIERNES SANTO"]
["2071-05-01","DIA DEL TRABAJO"]
["2071-06-29","SAN PEDRO Y SAN PABLO"]
["2071-07-28","FIESTAS PATRIAS"]
["2071-07-29","FIESTAS PATRIAS"]
["2071-08-30","SANTA ROSA DE LIMA"]
["2071-10-08","COMBATE DE ANGAMOS"]
["2071-11-01","DIA DE LOS DIFUNTOS"]
["2071-12-08","DIA INMACULADA CONCEPCION"]
["2071-12-25","NAVIDAD"]
["2072-01-01","AÑO NUEVO"]
["2072-04-07","JUEVES SANTO"]
["2072-04-08","VIERNES SANTO"]
["2072-05-01","DIA DEL TRABAJO"]
["2072-06-29","SAN PEDRO Y SAN PABLO"]
["2072-07-28","FIESTAS PATRIAS"]
["2072-07-29","FIESTAS PATRIAS"]
["2072-08-30","SANTA ROSA DE LIMA"]
["2072-10-08","COMBATE DE ANGAMOS"]
["2072-11-01","DIA DE LOS DIFUNTOS"]
["2072-12-08","DIA INMACULADA CONCEPCION"]
["2072-12-25","NAVIDAD"]
["2073-01-01","ANO NUEVO"]
["2073-03-23","JUEVES SANTO"]
["2073-03-24","VIERNES SANTO"]
["2073-05-01","DIA DEL TRABAJO"]
["2073-06-29","SAN PEDRO Y SAN PABLO"]
["2073-07-28","FIESTAS PATRIAS"]
["2073-07-29","FIESTAS PATRIAS"]
["2073-08-30","SANTA ROSA DE LIMA"]
["2073-10-08","COMBATE DE ANGAMOS"]
["2073-11-01","DIA DE LOS DIFUNTOS"]
["2073-12-08","DIA INMACULADA CONCEPCION"]
["2073-12-25","NAVIDAD"]
["2074-01-01","AÑO NUEVO"]
["2074-04-12","JUEVES SANTO"]
["2074-04-13","VIERNES SANTO"]
["2074-05-01","DIA DEL TRABAJO"]
["2074-06-29","SAN PEDRO Y SAN PABLO"]
["2074-07-28","FIESTAS PATRIAS"]
["2074-07-29","FIESTAS PATRIAS"]
["2074-08-30","SANTA ROSA DE LIMA"]
["2074-10-08","COMBATE DE ANGAMOS"]
["2074-11-01","DIA DE LOS DIFUNTOS"]
["2074-12-08","DIA INMACULADA CONCEPCION"]
["2074-12-25","NAVIDAD"]
["2075-01-01","AÑO NUEVO"]
["2075-04-04","JUEVES SANTO"]
["2075-04-05","VIERNES SANTO"]
["2075-05-01","DIA DEL TRABAJO"]
["2075-06-29","SAN PEDRO Y SAN PABLO"]
["2075-07-28","FIESTAS PATRIAS"]
["2075-07-29","FIESTAS PATRIAS"]
["2075-08-30","SANTA ROSA DE LIMA"]
["2075-10-08","COMBATE DE ANGAMOS"]
["2075-11-01","DIA DE LOS DIFUNTOS"]
["2075-12-08","DIA INMACULADA CONCEPCION"]
["2075-12-25","NAVIDAD"]
["2076-01-01","AÑO NUEVO"]
["2076-04-16","JUEVES SANTO"]
["2076-04-17","VIERNES SANTO"]
["2076-05-01","DIA DEL TRABAJO"]
["2076-06-29","SAN PEDRO Y SAN PABLO"]
["2076-07-28","FIESTAS PATRIAS"]
["2076-07-29","FIESTAS PATRIAS"]
["2076-08-30","SANTA ROSA DE LIMA"]
["2076-10-08","COMBATE DE ANGAMOS"]
["2076-11-01","DIA DE LOS DIFUNTOS"]
["2076-12-08","DIA INMACULADA CONCEPCION"]
["2076-12-25","NAVIDAD"]
["2077-01-01","AÑO NUEVO"]
["2077-04-08","JUEVES SANTO"]
["2077-04-09","VIERNES SANTO"]
["2077-05-01","DIA DEL TRABAJO"]
["2077-06-29","SAN PEDRO Y SAN PABLO"]
["2077-07-28","FIESTAS PATRIAS"]
["2077-07-29","FIESTAS PATRIAS"]
["2077-08-30","SANTA ROSA DE LIMA"]
["2077-10-08","COMBATE DE ANGAMOS"]
["2077-11-01","DIA DE LOS DIFUNTOS"]
["2077-12-08","DIA INMACULADA CONCEPCION"]
["2077-12-25","NAVIDAD"]
["2078-01-01","AÑO NUEVO"]
["2078-03-31","JUEVES SANTO"]
["2078-04-01","VIERNES SANTO"]
["2078-05-01","DIA DEL TRABAJO"]
["2078-06-29","SAN PEDRO Y SAN PABLO"]
["2078-07-28","FIESTAS PATRIAS"]
["2078-07-29","FIESTAS PATRIAS"]
["2078-08-30","SANTA ROSA DE LIMA"]
["2078-10-08","COMBATE DE ANGAMOS"]
["2078-11-01","DIA DE LOS DIFUNTOS"]
["2078-12-08","DIA INMACULADA CONCEPCION"]
["2078-12-25","NAVIDAD"]
["2079-01-01","ANO NUEVO"]
["2079-04-20","JUEVES SANTO"]
["2079-04-21","VIERNES SANTO"]
["2079-05-01","DIA DEL TRABAJO"]
["2079-06-29","SAN PEDRO Y SAN PABLO"]
["2079-07-28","FIESTAS PATRIAS"]
["2079-07-29","FIESTAS PATRIAS"]
["2079-08-30","SANTA ROSA DE LIMA"]
["2079-10-08","COMBATE DE ANGAMOS"]
["2079-11-01","DIA DE LOS DIFUNTOS"]
["2079-12-08","DIA INMACULADA CONCEPCION"]
["2079-12-25","NAVIDAD"]
["2080-01-01","AÑO NUEVO"]
["2080-04-04","JUEVES SANTO"]
["2080-04-05","VIERNES SANTO"]
["2080-05-01","DIA DEL TRABAJO"]
["2080-06-29","SAN PEDRO Y SAN PABLO"]
["2080-07-28","FIESTAS PATRIAS"]
["2080-07-29","FIESTAS PATRIAS"]
["2080-08-30","SANTA ROSA DE LIMA"]
["2080-10-08","COMBATE DE ANGAMOS"]
["2080-11-01","DIA DE LOS DIFUNTOS"]
["2080-12-08","DIA INMACULADA CONCEPCION"]
["2080-12-25","NAVIDAD"]
["2081-01-01","AÑO NUEVO"]
["2081-03-27","JUEVES SANTO"]
["2081-03-28","VIERNES SANTO"]
["2081-05-01","DIA DEL TRABAJO"]
["2081-06-29","SAN PEDRO Y SAN PABLO"]
["2081-07-28","FIESTAS PATRIAS"]
["2081-07-29","FIESTAS PATRIAS"]
["2081-08-30","SANTA ROSA DE LIMA"]
["2081-10-08","COMBATE DE ANGAMOS"]
["2081-11-01","DIA DE LOS DIFUNTOS"]
["2081-12-08","DIA INMACULADA CONCEPCION"]
["2081-12-25","NAVIDAD"]
["2082-01-01","AÑO NUEVO"]
["2082-04-16","JUEVES SANTO"]
["2082-04-17","VIERNES SANTO"]
["2082-05-01","DIA DEL TRABAJO"]
["2082-06-29","SAN PEDRO Y SAN PABLO"]
["2082-07-28","FIESTAS PATRIAS"]
["2082-07-29","FIESTAS PATRIAS"]
["2082-08-30","SANTA ROSA DE LIMA"]
["2082-10-08","COMBATE DE ANGAMOS"]
["2082-11-01","DIA DE LOS DIFUNTOS"]
["2082-12-08","DIA INMACULADA CONCEPCION"]
["2082-12-25","NAVIDAD"]
["2083-01-01","AÑO NUEVO"]
["2083-04-01","JUEVES SANTO"]
["2083-04-02","VIERNES SANTO"]
["2083-05-01","DIA DEL TRABAJO"]
["2083-06-29","SAN PEDRO Y SAN PABLO"]
["2083-07-28","FIESTAS PATRIAS"]
["2083-07-29","FIESTAS PATRIAS"]
["2083-08-30","SANTA ROSA DE LIMA"]
["2083-10-08","COMBATE DE ANGAMOS"]
["2083-11-01","DIA DE LOS DIFUNTOS"]
["2083-12-08","DIA INMACULADA CONCEPCION"]
["2083-12-25","NAVIDAD"]
["2084-01-01","AÑO NUEVO"]
["2084-03-23","JUEVES SANTO"]
["2084-03-24","VIERNES SANTO"]
["2084-05-01","DIA DEL TRABAJO"]
["2084-06-29","SAN PEDRO Y SAN PABLO"]
["2084-07-28","FIESTAS PATRIAS"]
["2084-07-29","FIESTAS PATRIAS"]
["2084-08-30","SANTA ROSA DE LIMA"]
["2084-10-08","COMBATE DE ANGAMOS"]
["2084-11-01","DIA DE LOS DIFUNTOS"]
["2084-12-08","DIA INMACULADA CONCEPCION"]
["2084-12-25","NAVIDAD"]
["2085-01-01","AÑO NUEVO"]
["2085-04-12","JUEVES SANTO"]
["2085-04-13","VIERNES SANTO"]
["2085-05-01","DIA DEL TRABAJO"]
["2085-06-29","SAN PEDRO Y SAN PABLO"]
["2085-07-28","FIESTAS PATRIAS"]
["2085-07-29","FIESTAS PATRIAS"]
["2085-08-30","SANTA ROSA DE LIMA"]
["2085-10-08","COMBATE DE ANGAMOS"]
["2085-11-01","DIA DE LOS DIFUNTOS"]
["2085-12-08","DIA INMACULADA CONCEPCION"]
["2085-12-25","NAVIDAD"]
["2086-01-01","AÑO NUEVO"]
["2086-03-28","JUEVES SANTO"]
["2086-03-29","VIERNES SANTO"]
["2086-05-01","DIA DEL TRABAJO"]
["2086-06-29","SAN PEDRO Y SAN PABLO"]
["2086-07-28","FIESTAS PATRIAS"]
["2086-07-29","FIESTAS PATRIAS"]
["2086-08-30","SANTA ROSA DE LIMA"]
["2086-10-08","COMBATE DE ANGAMOS"]
["2086-11-01","DIA DE LOS DIFUNTOS"]
["2086-12-08","DIA INMACULADA CONCEPCION"]
["2086-12-25","NAVIDAD"]
["2087-01-01","AÑO NUEVO"]
["2087-04-17","JUEVES SANTO"]
["2087-04-18","VIERNES SANTO"]
["2087-05-01","DIA DEL TRABAJO"]
["2087-06-29","SAN PEDRO Y SAN PABLO"]
["2087-07-28","FIESTAS PATRIAS"]
["2087-07-29","FIESTAS PATRIAS"]
["2087-08-30","SANTA ROSA DE LIMA"]
["2087-10-08","COMBATE DE ANGAMOS"]
["2087-11-01","DIA DE LOS DIFUNTOS"]
["2087-12-08","DIA INMACULADA CONCEPCION"]
["2087-12-25","NAVIDAD"]
["2088-01-01","AÑO NUEVO"]
["2088-04-08","JUEVES SANTO"]
["2088-04-09","VIERNES SANTO"]
["2088-05-01","DIA DEL TRABAJO"]
["2088-06-29","SAN PEDRO Y SAN PABLO"]
["2088-07-28","FIESTAS PATRIAS"]
["2088-07-29","FIESTAS PATRIAS"]
["2088-08-30","SANTA ROSA DE LIMA"]
["2088-10-08","COMBATE DE ANGAMOS"]
["2088-11-01","DIA DE LOS DIFUNTOS"]
["2088-12-08","DIA INMACULADA CONCEPCION"]
["2088-12-25","NAVIDAD"]
["2089-01-01","AÑO NUEVO"]
["2089-03-31","JUEVES SANTO"]
["2089-04-01","VIERNES SANTO"]
["2089-05-01","DIA DEL TRABAJO"]
["2089-06-29","SAN PEDRO Y SAN PABLO"]
["2089-07-28","FIESTAS PATRIAS"]
["2089-07-29","FIESTAS PATRIAS"]
["2089-08-30","SANTA ROSA DE LIMA"]
["2089-10-08","COMBATE DE ANGAMOS"]
["2089-11-01","DIA DE LOS DIFUNTOS"]
["2089-12-08","DIA INMACULADA CONCEPCION"]
["2089-12-25","NAVIDAD"]
["2090-01-01","ANO NUEVO"]
["2090-04-13","JUEVES SANTO"]
["2090-04-14","VIERNES SANTO"]
["2090-05-01","DIA DEL TRABAJO"]
["2090-06-29","SAN PEDRO Y SAN PABLO"]
["2090-07-28","FIESTAS PATRIAS"]
["2090-07-29","FIESTAS PATRIAS"]
["2090-08-30","SANTA ROSA DE LIMA"]
["2090-10-08","COMBATE DE ANGAMOS"]
["2090-11-01","DIA DE LOS DIFUNTOS"]
["2090-12-08","DIA INMACULADA CONCEPCION"]
["2090-12-25","NAVIDAD"]
["2091-01-01","AÑO NUEVO"]
["2091-04-05","JUEVES SANTO"]
["2091-04-06","VIERNES SANTO"]
["2091-05-01","DIA DEL TRABAJO"]
["2091-06-29","SAN PEDRO Y SAN PABLO"]
["2091-07-28","FIESTAS PATRIAS"]
["2091-07-29","FIESTAS PATRIAS"]
["2091-08-30","SANTA ROSA DE LIMA"]
["2091-10-08","COMBATE DE ANGAMOS"]
["2091-11-01","DIA DE LOS DIFUNTOS"]
["2091-12-08","DIA INMACULADA CONCEPCION"]
["2091-12-25","NAVIDAD"]
["2092-01-01","AÑO NUEVO"]
["2092-03-27","JUEVES SANTO"]
["2092-03-28","VIERNES SANTO"]
["2092-05-01","DIA DEL TRABAJO"]
["2092-06-29","SAN PEDRO Y SAN PABLO"]
["2092-07-28","FIESTAS PATRIAS"]
["2092-07-29","FIESTAS PATRIAS"]
["2092-08-30","SANTA ROSA DE LIMA"]
["2092-10-08","COMBATE DE ANGAMOS"]
["2092-11-01","DIA DE LOS DIFUNTOS"]
["2092-12-08","DIA INMACULADA CONCEPCION"]
["2092-12-25","NAVIDAD"]
["2093-01-01","AÑO NUEVO"]
["2093-04-09","JUEVES SANTO"]
["2093-04-10","VIERNES SANTO"]
["2093-05-01","DIA DEL TRABAJO"]
["2093-06-29","SAN PEDRO Y SAN PABLO"]
["2093-07-28","FIESTAS PATRIAS"]
["2093-07-29","FIESTAS PATRIAS"]
["2093-08-30","SANTA ROSA DE LIMA"]
["2093-10-08","COMBATE DE ANGAMOS"]
["2093-11-01","DIA DE LOS DIFUNTOS"]
["2093-12-08","DIA INMACULADA CONCEPCION"]
["2093-12-25","NAVIDAD"]
["2094-01-01","AÑO NUEVO"]
["2094-04-01","JUEVES SANTO"]
["2094-04-02","VIERNES SANTO"]
["2094-05-01","DIA DEL TRABAJO"]
["2094-06-29","SAN PEDRO Y SAN PABLO"]
["2094-07-28","FIESTAS PATRIAS"]
["2094-07-29","FIESTAS PATRIAS"]
["2094-08-30","SANTA ROSA DE LIMA"]
["2094-10-08","COMBATE DE ANGAMOS"]
["2094-11-01","DIA DE LOS DIFUNTOS"]
["2094-12-08","DIA INMACULADA CONCEPCION"]
["2094-12-25","NAVIDAD"]
["2095-01-01","AÑO NUEVO"]
["2095-04-21","JUEVES SANTO"]
["2095-04-22","VIERNES SANTO"]
["2095-05-01","DIA DEL TRABAJO"]
["2095-06-29","SAN PEDRO Y SAN PABLO"]
["2095-07-28","FIESTAS PATRIAS"]
["2095-07-29","FIESTAS PATRIAS"]
["2095-08-30","SANTA ROSA DE LIMA"]
["2095-10-08","COMBATE DE ANGAMOS"]
["2095-11-01","DIA DE LOS DIFUNTOS"]
["2095-12-08","DIA INMACULADA CONCEPCION"]
["2095-12-25","NAVIDAD"]
["2096-01-01","ANO NUEVO"]
["2096-04-12","JUEVES SANTO"]
["2096-04-13","VIERNES SANTO"]
["2096-05-01","DIA DEL TRABAJO"]
["2096-06-29","SAN PEDRO Y SAN PABLO"]
["2096-07-28","FIESTAS PATRIAS"]
["2096-07-29","FIESTAS PATRIAS"]
["2096-08-30","SANTA ROSA DE LIMA"]
["2096-10-08","COMBATE DE ANGAMOS"]
["2096-11-01","DIA DE LOS DIFUNTOS"]
["2096-12-08","DIA INMACULADA CONCEPCION"]
["2096-12-25","NAVIDAD"]
["2097-01-01","AÑO NUEVO"]
["2097-03-28","JUEVES SANTO"]
["2097-03-29","VIERNES SANTO"]
["2097-05-01","DIA DEL TRABAJO"]
["2097-06-29","SAN PEDRO Y SAN PABLO"]
["2097-07-28","FIESTAS PATRIAS"]
["2097-07-29","FIESTAS PATRIAS"]
["2097-08-30","SANTA ROSA DE LIMA"]
["2097-10-08","COMBATE DE ANGAMOS"]
["2097-11-01","DIA DE LOS DIFUNTOS"]
["2097-12-08","DIA INMACULADA CONCEPCION"]
["2097-12-25","NAVIDAD"]
["2098-01-01","AÑO NUEVO"]
["2098-04-17","JUEVES SANTO"]
["2098-04-18","VIERNES SANTO"]
["2098-05-01","DIA DEL TRABAJO"]
["2098-06-29","SAN PEDRO Y SAN PABLO"]
["2098-07-28","FIESTAS PATRIAS"]
["2098-07-29","FIESTAS PATRIAS"]
["2098-08-30","SANTA ROSA DE LIMA"]
["2098-10-08","COMBATE DE ANGAMOS"]
["2098-11-01","DIA DE LOS DIFUNTOS"]
["2098-12-08","DIA INMACULADA CONCEPCION"]
["2098-12-25","NAVIDAD"]
["2099-01-01","AÑO NUEVO"]
["2099-04-09","JUEVES SANTO"]
["2099-04-10","VIERNES SANTO"]
["2099-05-01","DIA DEL TRABAJO"]
["2099-06-29","SAN PEDRO Y SAN PABLO"]
["2099-07-28","FIESTAS PATRIAS"]
["2099-07-29","FIESTAS PATRIAS"]
["2099-08-30","SANTA ROSA DE LIMA"]
["2099-10-08","COMBATE DE ANGAMOS"]
["2099-11-01","DIA DE LOS DIFUNTOS"]
["2099-12-08","DIA INMACULADA CONCEPCION"]
["2099-12-25","NAVIDAD"]
["2100-01-01","AÑO NUEVO"]
["2100-03-25","JUEVES SANTO"]
["2100-03-26","VIERNES SANTO"]
["2100-05-01","DIA DEL TRABAJO"]
["2100-06-29","SAN PEDRO Y SAN PABLO"]
["2100-07-28","FIESTAS PATRIAS"]
["2100-07-29","FIESTAS PATRIAS"]
["2100-08-30","SANTA ROSA DE LIMA"]
["2100-10-08","COMBATE DE ANGAMOS"]
["2100-11-01","DIA DE LOS DIFUNTOS"]
["2100-12-08","DIA INMACULADA CONCEPCION"]
["2100-12-25","NAVIDAD"]

{"sheet":"TABLA","index":2,"n_rows":20,"n_cols":7,"rows_kept":20,"cut":false,"hidden":false,"merged":[]}
["Plan","inc IGV"]
["Edificación",2.3839999999999999E-4,null,"Si, Tradicional",null,null,"Capital de trabajo"]
["Existencias/Contenido",2.9020000000000001E-4,null,"Sí, retorno",null,null,"Mi efectivo Express"]
["Maq Equipo Fijo",3.2830000000000001E-4,null,"No",null,null,"Máquinas y Equipos"]
[null,null,null,null,null,null,"Locales Comerciales"]
[null,null,null,null,null,null,"Compra de Deuda"]
[null,null,null,null,null,null,"Financiamiento para SOAT"]
[null,null,null,null,null,null,"Mercado y Galerías Comerciales"]
[null,null,null,null,null,null,"Línea de Crédito Rural"]
[null,null,null,null,null,null,"Agropecuario de Libre Amortización"]
[null,null,null,null,null,null,"Producción Ganadera"]
[null,null,null,null,null,null,"Producción Agrícola"]
[null,null,null,null,null,null,"Línea de Crédito Efectivo Altoque"]
[null,null,null,null,null,null,"Compra de Deuda Plus"]
[null,null,null,null,null,null,"Casa Propia"]
[null,null,null,null,null,null,"Mi Efectivo Semilla"]
[null,null,null,null,null,null,"Construcción de Vivienda"]
[null,null,null,null,null,null,"Consumo Personal"]
[null,null,null,null,null,null,"Línea de Crédito Efectivo Altoque Dependiente"]
[null,null,null,null,null,null,"Crédito Mujer"]